Workbook

Sheet LISTES (hidden)
C7: CHAMPIONNAT DE France | E7: 2020 | G7: MASCULIN | H7: ABS | I7: 1 | J7: 0.00069444 | O7: 12 | P7: 0.5 | S7: 12h
C8: SERIE 1 - 2500 | E8: 2021 | G8: FEMININ | H8: 1 | I8: 2 | J8: =J7*I8 -> 0.00138888 | O8: =O7/2 -> 6 | P8: =P7/2 -> 0.25 | S8: 6h
C9: SERIE 1 - 2000 | E9: 2022 | G9: MIXTE | H9: 2 | I9: 3 | J9: 0.00069444 | O9: =O8/2 -> 3 | P9: 0.125 | S9: 3h
C10: SERIE 1 - 1500 | E10: 2023 | H10: 3 | I10: 4 | J10: =J9*I10 -> 0.00277776 | O10: 1 | P10: =P9/3 -> 0.04166666667 | S10: 1h
C11: SERIE 2 - 1000 | E11: 2024 | H11: 4 | I11: 5 | J11: 0.00069444 | O11: 0.5 | P11: =P10/2 -> 0.02083333333 | S11: 30mn
C12: SERIE 2 - 750 | H12: 5 | I12: 6 | J12: =J11*I12 -> 0.00416664 | O12: =O9/2 -> 1.5 | P12: =P9/2 -> 0.0625 | S12: 1,30 h
C13: SERIE 2 - 500 | H13: 6 | I13: 7 | J13: 0.00069444 | O13: =O12/2 -> 0.75 | P13: 0.03125 | S13: 45mn
C14: SERIE 2 - 250 | H14: 7 | I14: 8 | J14: =J13*I14 -> 0.00555552 | O14: =O13/2 -> 0.375 | P14: 0.015625 | S14: 22mn
C15: SERIE 3 - 150 | H15: 8 | I15: 9 | J15: 0.00069444 | P15: =P10/60 -> 0.0006944444444 | S15: 1mn
C16: SERIE 3 - 100 | H16: 9 | I16: 10 | J16: =J15*I16 -> 0.0069444 | P16: =P15*50 -> 0.03472222222 | S16: 50mn
H17: 10 | I17: 11 | J17: 0.00069444
H18: 11 | I18: 12 | J18: =J17*I18 -> 0.00833328
H19: 12 | I19: 13 | J19: 0.00069444
H20: 13 | I20: 14 | J20: =J19*I20 -> 0.00972216
H21: 14 | I21: 15 | J21: 0.00069444
H22: 15 | I22: 16 | J22: =J21*I22 -> 0.01111104
H23: 16 | I23: 17 | J23: 0.00069444
H24: 17 | I24: 18 | J24: =J23*I24 -> 0.01249992
H25: 18 | I25: 19 | J25: 0.00069444
H26: 19 | I26: 20 | J26: =J25*I26 -> 0.0138888
H27: 20 | I27: 21 | J27: 0.00069444
H28: 21 | I28: 22 | J28: =J27*I28 -> 0.01527768
H29: 22 | I29: 23 | J29: 0.00069444
H30: 23 | I30: 24 | J30: =J29*I30 -> 0.01666656
H31: 24 | I31: 25 | J31: 0.00069444
H32: 25 | I32: 26 | J32: =J31*I32 -> 0.01805544
H33: 26 | I33: 27 | J33: 0.00069444
H34: 27 | I34: 28 | J34: =J33*I34 -> 0.01944432
H35: 28 | I35: 29 | J35: 0.00069444
H36: 29 | I36: 30 | J36: =J35*I36 -> 0.0208332
H37: 30 | I37: 31 | J37: 0.00069444
H38: 31 | I38: 32 | J38: =J37*I38 -> 0.02222208
H39: 32 | I39: 33 | J39: 0.00069444
I40: 34 | J40: =J39*I40 -> 0.02361096
I41: 35 | J41: 0.00069444
I42: 36 | J42: =J41*I42 -> 0.02499984
I43: 37 | J43: 0.00069444
I44: 38 | J44: =J43*I44 -> 0.02638872
I45: 39 | J45: 0.00069444
I46: 40 | J46: =J45*I46 -> 0.0277776
I47: 41 | J47: 0.00069444
I48: 42 | J48: =J47*I48 -> 0.02916648
I49: 43 | J49: 0.00069444
I50: 44 | J50: =J49*I50 -> 0.03055536
I51: 45 | J51: 0.00069444
I52: 46 | J52: =J51*I52 -> 0.03194424
I53: 47 | J53: 0.00069444
I54: 48 | J54: =J53*I54 -> 0.03333312
I55: 49 | J55: 0.00069444
I56: 50 | J56: =J55*I56 -> 0.034722
I57: 51 | J57: 0.00069444
I58: 52 | J58: =J57*I58 -> 0.03611088
I59: 53 | J59: 0.00069444
I60: 54 | J60: =J59*I60 -> 0.03749976
I61: 55 | J61: 0.00069444
I62: 56 | J62: =J61*I62 -> 0.03888864
I63: 57 | J63: 0.00069444
I64: 58 | J64: =J63*I64 -> 0.04027752
I65: 59 | J65: 0.00069444
I66: 60 | J66: =J65*I66 -> 0.0416664

Sheet LISTE ENGAGES
C1: =IF(Q3<>"",Q3,P3) -> APPELATION TOURNOI | H1: =IF(Q10="",P10,Q10) -> ORGANISATEUR
Q2: IDENTITE DU TOURNOI
P3: APPELATION TOURNOI
C4: =IF(Q4<>"",Q4,P4) -> LIEU | F4: =IF(Q6="","DATE",CONCATENATE(Q7,"-",Q8,"/",Q6)) -> DATE | H4: =IF(Q9="",P9,Q9) -> GENRE | P4: LIEU
C5: =IF(Q5<>"",Q5,P5) -> TYPE | P5: TYPE
C6: LISTE EQUIPES ENGAGEES | P6: ANNEE
P7: DATE DEBUT
A8: N° | C8: NOM | D8: PRENOM | E8: LICENCE | F8: CLUB | G8: NOM J2 | H8: PRENOM J2 | I8: LICENCE J2 | J8: CLUB J2 | K8: pts | L8: tir | P8: DATE FIN
A9: 1 | P9: GENRE
A10: 2 | P10: ORGANISATEUR
A11: 3
A12: 4 | N12: 1- Commencez par renseigner le tableau ci-dessus "identité du tournoi"
A13: 5 | N13: 2- Copiez-collez la liste des équipes engagées dans les champs ci-contre en respectant :
A14: 6 | N14: - nom et premon séparés pour chaque joueur ( à défaut, ne mentionez que le nom)
A15: 7 | N15: - l'ordre décroissant des têtes de séries
A16: 8 | N16: 3- Renseignez l'onglet "EMARG…." selon l'avancée dans les tableaux
A17: 9 | N17: 4-Renseignez les scores des rencontres dans l'onglet " TAB…" en fonction de l'avancée du tableau
A18: 10 | N18: 5- Renseignez l'onglet "RELEVE" à l'issue de la compétition
A19: 11
A20: 12
A21: 13
A22: 14
A23: 15
A24: 16
A25: 17
A26: 18
A27: 19
A28: 20
A29: 21
A30: 22
A31: 23
A32: 24
A33: 25
A34: 26

Sheet EMARG M Tableau QUALIF
D2: =IF('LISTE ENGAGES'!Q3="",'LISTE ENGAGES'!P3,'LISTE ENGAGES'!Q3) -> APPELATION TOURNOI | N2: ='LISTE ENGAGES'!H1:H3 -> 0
D4: =IF('LISTE ENGAGES'!Q4="",'LISTE ENGAGES'!P4,'LISTE ENGAGES'!Q4) -> LIEU | H4: ='LISTE ENGAGES'!F4 -> DATE | M4: ='LISTE ENGAGES'!H4 -> GENRE
D5: =IF('LISTE ENGAGES'!Q5<>"",'LISTE ENGAGES'!Q5,'LISTE ENGAGES'!P5) -> TYPE
D6: FEUILLE EMARGEMENT
A8: N° | C8: NOM | D8: PRENOM | E8: LICENCE | F8: CLUB | G8: NOM | H8: PRENOM | I8: LICENCE | J8: CLUB | K8: pts | L8: tir | M8: SIGNATURE JOUEUR1 | N8: SIGNATURE JOUEUR2 | O8: Rglt
A9: 1 | C9: T | G9: 1
A10: 2 | C10: T | G10: 2
A11: 3 | C11: T | G11: 3
A12: 4 | C12: T | G12: 4
A13: 5 | C13: T | G13: 5
A14: 6 | C14: T | G14: 6
A15: 7 | C15: T | G15: 7
A16: 8 | C16: T | G16: 8
A17: 9 | C17: T | G17: 9
A18: 10 | C18: T | G18: 10
A19: 11 | C19: T | G19: 11
A20: 12 | C20: T | G20: 12
A21: 13 | C21: T | G21: 13
A22: 14 | C22: T | G22: 14
A23: 15 | C23: T | G23: 15
A24: 16 | C24: T | G24: 16
C26: Copier/coller selon LISTE ENGAGES en fonction des équipes confirmées APRES les qualifications
C27: ATTENTION : Respecter l'ordre des têtes de séries en fonction des points et classement de la LISTE ENGAGES
C28: Ex: Si Sur LISTE ENGAGES, l'équipe 9 absente, la numéro 10 devient la numéro 9 dans EMARG
C29: EX: Si toutes les equipes du tableau principal sont confirmées, les équipes issues qualifications sont replacées en fonction de leurs points, en bas de tableau

Sheet SCORE QUALIF (hidden)
A3: DEBUT J1 | B3: 09:00:00
A4: TEMPS | B4: 00:30:00
A5: DEBUT J2 | B5: 00:00:00
C7: PHASE | D7: JOUR | E7: N° MATCH | F7: HEURE | G7: TER | H7: EQ1 | I7: EQ2 | J7: SCORE EQ1 | K7: SCORE EQ2 | L7: SET 1 EQ1 | M7: SET 1 EQ2 | N7: SET 2 EQ1 | O7: SET 2 EQ2 | P7: SET 3 EQ1 | Q7: SET 3 EQ2 | R7: POS 1 | S7: POS 2 | X7: PTS | Y7: S+ | Z7: S- | AA7: P+ | AB7: P- | AC7: CS | AD7: CP | AE7: CL.I | AF7: RG | AH7: CLA
C8: A | D8: 1 | E8: 1 | F8: =B3 -> 09:00:00 | G8: 1 | H8: ='Poule QUALIF 16 P+B'!C14 -> T / 1 | I8: ='Poule QUALIF 16 P+B'!C17 -> T / 16 | J8: =SUM(IF(L8>M8,1,0),IF(N8>O8,1,0),IF(P8>Q8,1,0)) -> 0 | K8: =SUM(IF(M8>L8,1,0),IF(O8>N8,1,0),IF(Q8>P8,1,0)) -> 0 | L8: ='Poule QUALIF 16 P+B'!M13 -> 0 | M8: ='Poule QUALIF 16 P+B'!O13 -> 0 | N8: ='Poule QUALIF 16 P+B'!Q13 -> 0 | O8: ='Poule QUALIF 16 P+B'!S13 -> 0 | P8: ='Poule QUALIF 16 P+B'!U13 -> 0 | Q8: ='Poule QUALIF 16 P+B'!W13 -> 0 | R8: =IF(J8=K8,"",IF(J8>K8,H8,I8)) ->  | S8: =IF(J8=K8,"",IF(J8<K8,H8,I8)) ->  | W8: ='Poule QUALIF 16 P+B'!C14 -> T / 1 | X8: =COUNTIF(PLACE1,W8)*2+COUNTIF(PLACE2,W8) -> 0 | Y8: =SUMIF(LISTEE1,W8,(SCEQ1))+SUMIF(LISTEE2,W8,(SCEQ2)) -> 0 | Z8: =SUMIF(LISTEE1,W8,(SCEQ2))+SUMIF(LISTEE2,W8,(SCEQ1)) -> 0 | AA8: =(SUMPRODUCT((LISTEE1=W8)*((S1EQ1)+(S2EQ1)+(S3EQ1))))+(SUMPRODUCT((LISTEE2=W8)*((S1EQ2)+(S2EQ2)+(S3EQ3)))) -> 0 | AB8: =(SUMPRODUCT((LISTEE2=W8)*((S1EQ1)+(S2EQ1)+(S3EQ1))))+(SUMPRODUCT((LISTEE1=W8)*((S1EQ2)+(S2EQ2)+(S3EQ3)))) -> 0 | AC8: =IFERROR(Y8/Z8,0) -> 0 | AD8: =IFERROR(AA8/AB8,0) -> 0 | AE8: =X8+AC8/100+AD8/100 -> 0 | AF8: =IF(X8=0,"",RANK(AE8,$AE$8:$AE$11)) ->  | AG8: 1 | AH8: =IF(X8=0,"",IF($AF$8=AG8,$W$8,IF($AF$9=AG8,$W$9,IF($AF$10=AG8,$W$10,IF($AF$11=AG8,$W$11))))) -> 
C9: B | D9: 1 | E9: 2 | F9: =B3 -> 09:00:00 | G9: 2 | H9: ='Poule QUALIF 16 P+B'!C21 -> T / 2 | I9: ='Poule QUALIF 16 P+B'!C24 -> T / 15 | J9: 0 | K9: 0 | L9: ='Poule QUALIF 16 P+B'!M20 -> 0 | M9: ='Poule QUALIF 16 P+B'!O20 -> 0 | N9: ='Poule QUALIF 16 P+B'!Q20 -> 0 | O9: ='Poule QUALIF 16 P+B'!S20 -> 0 | P9: ='Poule QUALIF 16 P+B'!U20 -> 0 | Q9: ='Poule QUALIF 16 P+B'!W20 -> 0 | R9: =IF(J9=K9,"",IF(J9>K9,H9,I9)) ->  | S9: =IF(J9=K9,"",IF(J9<K9,H9,I9)) ->  | W9: ='Poule QUALIF 16 P+B'!C15 -> T / 8 | X9: =COUNTIF(PLACE1,W9)*2+COUNTIF(PLACE2,W9) -> 0 | Y9: =SUMIF(LISTEE1,W9,(SCEQ1))+SUMIF(LISTEE2,W9,(SCEQ2)) -> 0 | Z9: =SUMIF(LISTEE1,W9,(SCEQ2))+SUMIF(LISTEE2,W9,(SCEQ1)) -> 0 | AA9: =(SUMPRODUCT((LISTEE1=W9)*((S1EQ1)+(S2EQ1)+(S3EQ1))))+(SUMPRODUCT((LISTEE2=W9)*((S1EQ2)+(S2EQ2)+(S3EQ3)))) -> 0 | AB9: =(SUMPRODUCT((LISTEE2=W9)*((S1EQ1)+(S2EQ1)+(S3EQ1))))+(SUMPRODUCT((LISTEE1=W9)*((S1EQ2)+(S2EQ2)+(S3EQ3)))) -> 0 | AC9: =IFERROR(Y9/Z9,0) -> 0 | AD9: =IFERROR(AA9/AB9,0) -> 0 | AE9: =X9+AC9/100+AD9/100 -> 0 | AF9: =IF(X9=0,"",RANK(AE9,$AE$8:$AE$11)) ->  | AG9: 2 | AH9: =IF(X9=0,"",IF($AF$8=AG9,$W$8,IF($AF$9=AG9,$W$9,IF($AF$10=AG9,$W$10,IF($AF$11=AG9,$W$11))))) -> 
C10: C | D10: 1 | E10: 3 | F10: =F8+$B$4 -> 09:30:00 | G10: 1 | H10: ='Poule QUALIF 16 P+B'!C28 -> T / 3 | I10: ='Poule QUALIF 16 P+B'!C31 -> T / 14 | J10: 0 | K10: 0 | L10: ='Poule QUALIF 16 P+B'!M27 -> 0 | M10: ='Poule QUALIF 16 P+B'!O27 -> 0 | N10: ='Poule QUALIF 16 P+B'!Q27 -> 0 | O10: ='Poule QUALIF 16 P+B'!S27 -> 0 | P10: ='Poule QUALIF 16 P+B'!U27 -> 0 | Q10: ='Poule QUALIF 16 P+B'!W27 -> 0 | W10: ='Poule QUALIF 16 P+B'!C16 -> T / 9 | X10: =COUNTIF(PLACE1,W10)*2+COUNTIF(PLACE2,W10) -> 0 | Y10: =SUMIF(LISTEE1,W10,(SCEQ1))+SUMIF(LISTEE2,W10,(SCEQ2)) -> 0 | Z10: =SUMIF(LISTEE1,W10,SCEQ2)+SUMIF(LISTEE2,W10,SCEQ1) -> 0 | AA10: =(SUMPRODUCT((LISTEE1=W10)*((S1EQ1)+(S2EQ1)+(S3EQ1))))+(SUMPRODUCT((LISTEE2=W10)*((S1EQ2)+(S2EQ2)+(S3EQ3)))) -> 0 | AB10: =(SUMPRODUCT((LISTEE2=W10)*((S1EQ1)+(S2EQ1)+(S3EQ1))))+(SUMPRODUCT((LISTEE1=W10)*((S1EQ2)+(S2EQ2)+(S3EQ3)))) -> 0 | AC10: 0 | AD10: 0 | AE10: 0 | AF10: =IF(X10=0,"",RANK(AE10,$AE$8:$AE$11)) ->  | AG10: 3 | AH10: =IF(X10=0,"",IF($AF$8=AG10,$W$8,IF($AF$9=AG10,$W$9,IF($AF$10=AG10,$W$10,IF($AF$11=AG10,$W$11))))) -> 
C11: D | D11: 1 | E11: 4 | F11: 09:30:00 | G11: 2 | H11: ='Poule QUALIF 16 P+B'!C35 -> T / 4 | I11: ='Poule QUALIF 16 P+B'!C38 -> T / 13 | J11: 0 | K11: 0 | L11: ='Poule QUALIF 16 P+B'!M34 -> 0 | M11: ='Poule QUALIF 16 P+B'!O34 -> 0 | N11: ='Poule QUALIF 16 P+B'!Q34 -> 0 | O11: ='Poule QUALIF 16 P+B'!S34 -> 0 | P11: ='Poule QUALIF 16 P+B'!U34 -> 0 | Q11: ='Poule QUALIF 16 P+B'!W34 -> 0 | W11: ='Poule QUALIF 16 P+B'!C17 -> T / 16 | X11: =COUNTIF(PLACE1,W11)*2+COUNTIF(PLACE2,W11) -> 0 | Y11: =SUMIF(LISTEE1,W11,(SCEQ1))+SUMIF(LISTEE2,W11,(SCEQ2)) -> 0 | Z11: =SUMIF(LISTEE1,W11,SCEQ2)+SUMIF(LISTEE2,W11,SCEQ1) -> 0 | AA11: =(SUMPRODUCT((LISTEE1=W11)*((S1EQ1)+(S2EQ1)+(S3EQ1))))+(SUMPRODUCT((LISTEE2=W11)*((S1EQ2)+(S2EQ2)+(S3EQ3)))) -> 0 | AB11: =(SUMPRODUCT((LISTEE2=W11)*((S1EQ1)+(S2EQ1)+(S3EQ1))))+(SUMPRODUCT((LISTEE1=W11)*((S1EQ2)+(S2EQ2)+(S3EQ3)))) -> 0 | AC11: 0 | AD11: 0 | AE11: 0 | AF11: =IF(X11=0,"",RANK(AE11,$AE$8:$AE$11)) ->  | AG11: 4 | AH11: =IF(X11=0,"",IF($AF$8=AG11,$W$8,IF($AF$9=AG11,$W$9,IF($AF$10=AG11,$W$10,IF($AF$11=AG11,$W$11))))) -> 
C12: A | D12: 1 | E12: 5 | F12: 10:00:00 | G12: 1 | H12: ='Poule QUALIF 16 P+B'!C15 -> T / 8 | I12: ='Poule QUALIF 16 P+B'!C16 -> T / 9 | J12: 0 | K12: 0 | L12: ='Poule QUALIF 16 P+B'!M14 -> 0 | M12: ='Poule QUALIF 16 P+B'!O14 -> 0 | N12: ='Poule QUALIF 16 P+B'!Q14 -> 0 | O12: ='Poule QUALIF 16 P+B'!S14 -> 0 | P12: ='Poule QUALIF 16 P+B'!U14 -> 0 | Q12: ='Poule QUALIF 16 P+B'!W14 -> 0
C13: B | D13: 1 | E13: 6 | F13: 10:00:00 | G13: 2 | H13: ='Poule QUALIF 16 P+B'!C22 -> T / 7 | I13: ='Poule QUALIF 16 P+B'!C23 -> T / 10 | J13: 0 | K13: 0 | L13: ='Poule QUALIF 16 P+B'!M21 -> 0 | M13: ='Poule QUALIF 16 P+B'!O21 -> 0 | N13: ='Poule QUALIF 16 P+B'!Q21 -> 0 | O13: ='Poule QUALIF 16 P+B'!S21 -> 0 | P13: ='Poule QUALIF 16 P+B'!U21 -> 0 | Q13: ='Poule QUALIF 16 P+B'!W21 -> 0 | W13: ='Poule QUALIF 16 P+B'!C21 -> T / 2 | X13: =COUNTIF(PLACE1,W13)*2+COUNTIF(PLACE2,W13) -> 0 | Y13: =SUMIF(LISTEE1,W13,(SCEQ1))+SUMIF(LISTEE2,W13,(SCEQ2)) -> 0 | Z13: =SUMIF(LISTEE1,W13,SCEQ2)+SUMIF(LISTEE2,W13,SCEQ1) -> 0 | AA13: =(SUMPRODUCT((LISTEE1=W13)*((S1EQ1)+(S2EQ1)+(S3EQ1))))+(SUMPRODUCT((LISTEE2=W13)*((S1EQ2)+(S2EQ2)+(S3EQ3)))) -> 0 | AB13: =(SUMPRODUCT((LISTEE2=W13)*((S1EQ1)+(S2EQ1)+(S3EQ1))))+(SUMPRODUCT((LISTEE1=W13)*((S1EQ2)+(S2EQ2)+(S3EQ3)))) -> 0 | AC13: 0 | AD13: 0 | AE13: 0 | AF13: =IF(X13=0,"",RANK(AE13,$AE$13:$AE$16)) ->  | AG13: 1 | AH13: =IF(X13=0,"",IF($AF$13=AG13,$W$13,IF($AF$14=AG13,$W$14,IF($AF$15=AG13,$W$15,IF($AF$16=AG13,$W$16))))) -> 
C14: C | D14: 1 | E14: 7 | F14: 10:30:00 | G14: 1 | H14: ='Poule QUALIF 16 P+B'!C29 -> T / 6 | I14: ='Poule QUALIF 16 P+B'!C30 -> T / 11 | J14: 0 | K14: 0 | L14: ='Poule QUALIF 16 P+B'!M28 -> 0 | M14: ='Poule QUALIF 16 P+B'!O28 -> 0 | N14: ='Poule QUALIF 16 P+B'!Q28 -> 0 | O14: ='Poule QUALIF 16 P+B'!S28 -> 0 | P14: ='Poule QUALIF 16 P+B'!U28 -> 0 | Q14: ='Poule QUALIF 16 P+B'!W28 -> 0 | R14: =IF(J14=K14,"",IF(J14>K14,H14,I14)) ->  | W14: ='Poule QUALIF 16 P+B'!C22 -> T / 7 | X14: =COUNTIF(PLACE1,W14)*2+COUNTIF(PLACE2,W14) -> 0 | Y14: =SUMIF(LISTEE1,W14,(SCEQ1))+SUMIF(LISTEE2,W14,(SCEQ2)) -> 0 | Z14: =SUMIF(LISTEE1,W14,SCEQ2)+SUMIF(LISTEE2,W14,SCEQ1) -> 0 | AA14: =(SUMPRODUCT((LISTEE1=W14)*((S1EQ1)+(S2EQ1)+(S3EQ1))))+(SUMPRODUCT((LISTEE2=W14)*((S1EQ2)+(S2EQ2)+(S3EQ3)))) -> 0 | AB14: =(SUMPRODUCT((LISTEE2=W14)*((S1EQ1)+(S2EQ1)+(S3EQ1))))+(SUMPRODUCT((LISTEE1=W14)*((S1EQ2)+(S2EQ2)+(S3EQ3)))) -> 0 | AC14: 0 | AD14: 0 | AE14: 0 | AF14: =IF(X14=0,"",RANK(AE14,$AE$13:$AE$16)) ->  | AG14: 2 | AH14: =IF(X14=0,"",IF($AF$13=AG14,$W$13,IF($AF$14=AG14,$W$14,IF($AF$15=AG14,$W$15,IF($AF$16=AG14,$W$16))))) -> 
C15: D | D15: 1 | E15: 8 | F15: 10:30:00 | G15: 2 | H15: ='Poule QUALIF 16 P+B'!C36 -> T / 5 | I15: ='Poule QUALIF 16 P+B'!C37 -> T /12 | J15: 0 | K15: 0 | L15: ='Poule QUALIF 16 P+B'!M35 -> 0 | M15: ='Poule QUALIF 16 P+B'!O35 -> 0 | N15: ='Poule QUALIF 16 P+B'!Q35 -> 0 | O15: ='Poule QUALIF 16 P+B'!S35 -> 0 | P15: ='Poule QUALIF 16 P+B'!U35 -> 0 | Q15: ='Poule QUALIF 16 P+B'!W35 -> 0 | W15: ='Poule QUALIF 16 P+B'!C23 -> T / 10 | X15: =COUNTIF(PLACE1,W15)*2+COUNTIF(PLACE2,W15) -> 0 | Y15: =SUMIF(LISTEE1,W15,(SCEQ1))+SUMIF(LISTEE2,W15,(SCEQ2)) -> 0 | Z15: =SUMIF(LISTEE1,W15,SCEQ2)+SUMIF(LISTEE2,W15,SCEQ1) -> 0 | AA15: =(SUMPRODUCT((LISTEE1=W15)*((S1EQ1)+(S2EQ1)+(S3EQ1))))+(SUMPRODUCT((LISTEE2=W15)*((S1EQ2)+(S2EQ2)+(S3EQ3)))) -> 0 | AB15: =(SUMPRODUCT((LISTEE2=W15)*((S1EQ1)+(S2EQ1)+(S3EQ1))))+(SUMPRODUCT((LISTEE1=W15)*((S1EQ2)+(S2EQ2)+(S3EQ3)))) -> 0 | AC15: 0 | AD15: 0 | AE15: 0 | AF15: =IF(X15=0,"",RANK(AE15,$AE$13:$AE$16)) ->  | AG15: 3 | AH15: =IF(X15=0,"",IF($AF$13=AG15,$W$13,IF($AF$14=AG15,$W$14,IF($AF$15=AG15,$W$15,IF($AF$16=AG15,$W$16))))) -> 
C16: A | D16: 1 | E16: 9 | F16: 11:00:00 | G16: 1 | H16: ='Poule QUALIF 16 P+B'!C15 -> T / 8 | I16: ='Poule QUALIF 16 P+B'!C17 -> T / 16 | J16: 0 | K16: 0 | L16: ='Poule QUALIF 16 P+B'!M15 -> 0 | M16: ='Poule QUALIF 16 P+B'!O15 -> 0 | N16: ='Poule QUALIF 16 P+B'!Q15 -> 0 | O16: ='Poule QUALIF 16 P+B'!S15 -> 0 | P16: ='Poule QUALIF 16 P+B'!U15 -> 0 | Q16: ='Poule QUALIF 16 P+B'!W15 -> 0 | W16: ='Poule QUALIF 16 P+B'!C24 -> T / 15 | X16: =COUNTIF(PLACE1,W16)*2+COUNTIF(PLACE2,W16) -> 0 | Y16: =SUMIF(LISTEE1,W16,(SCEQ1))+SUMIF(LISTEE2,W16,(SCEQ2)) -> 0 | Z16: =SUMIF(LISTEE1,W16,SCEQ2)+SUMIF(LISTEE2,W16,SCEQ1) -> 0 | AA16: =(SUMPRODUCT((LISTEE1=W16)*((S1EQ1)+(S2EQ1)+(S3EQ1))))+(SUMPRODUCT((LISTEE2=W16)*((S1EQ2)+(S2EQ2)+(S3EQ3)))) -> 0 | AB16: =(SUMPRODUCT((LISTEE2=W16)*((S1EQ1)+(S2EQ1)+(S3EQ1))))+(SUMPRODUCT((LISTEE1=W16)*((S1EQ2)+(S2EQ2)+(S3EQ3)))) -> 0 | AC16: 0 | AD16: 0 | AE16: 0 | AF16: =IF(X16=0,"",RANK(AE16,$AE$13:$AE$16)) ->  | AG16: 4 | AH16: =IF(X16=0,"",IF($AF$13=AG16,$W$13,IF($AF$14=AG16,$W$14,IF($AF$15=AG16,$W$15,IF($AF$16=AG16,$W$16))))) -> 
C17: B | D17: 1 | E17: 10 | F17: 11:00:00 | G17: 2 | H17: ='Poule QUALIF 16 P+B'!C22 -> T / 7 | I17: ='Poule QUALIF 16 P+B'!C24 -> T / 15 | J17: 0 | K17: 0 | L17: ='Poule QUALIF 16 P+B'!M22 -> 0 | M17: ='Poule QUALIF 16 P+B'!O22 -> 0 | N17: ='Poule QUALIF 16 P+B'!Q22 -> 0 | O17: ='Poule QUALIF 16 P+B'!S22 -> 0 | P17: ='Poule QUALIF 16 P+B'!U22 -> 0 | Q17: ='Poule QUALIF 16 P+B'!W22 -> 0
C18: C | D18: 1 | E18: 11 | F18: 11:30:00 | G18: 1 | H18: ='Poule QUALIF 16 P+B'!C29 -> T / 6 | I18: ='Poule QUALIF 16 P+B'!C31 -> T / 14 | J18: 0 | K18: 0 | L18: ='Poule QUALIF 16 P+B'!M29 -> 0 | M18: ='Poule QUALIF 16 P+B'!O29 -> 0 | N18: ='Poule QUALIF 16 P+B'!Q29 -> 0 | O18: ='Poule QUALIF 16 P+B'!S29 -> 0 | P18: ='Poule QUALIF 16 P+B'!U29 -> 0 | Q18: ='Poule QUALIF 16 P+B'!W29 -> 0 | W18: ='Poule QUALIF 16 P+B'!C28 -> T / 3 | X18: =COUNTIF(PLACE1,W18)*2+COUNTIF(PLACE2,W18) -> 0 | Y18: =SUMIF(LISTEE1,W18,(SCEQ1))+SUMIF(LISTEE2,W18,(SCEQ2)) -> 0 | Z18: =SUMIF(LISTEE1,W18,SCEQ2)+SUMIF(LISTEE2,W18,SCEQ1) -> 0 | AA18: =(SUMPRODUCT((LISTEE1=W18)*((S1EQ1)+(S2EQ1)+(S3EQ1))))+(SUMPRODUCT((LISTEE2=W18)*((S1EQ2)+(S2EQ2)+(S3EQ3)))) -> 0 | AB18: =(SUMPRODUCT((LISTEE2=W18)*((S1EQ1)+(S2EQ1)+(S3EQ1))))+(SUMPRODUCT((LISTEE1=W18)*((S1EQ2)+(S2EQ2)+(S3EQ3)))) -> 0 | AC18: =IFERROR(Y18/Z18,0) -> 0 | AD18: 0 | AE18: =X18+AC18/100+AD18/100 -> 0 | AF18: =IF(X18=0,"",RANK(AE18,$AE$18:$AE$21)) ->  | AG18: 1 | AH18: =IF(X18=0,"",IF($AF$18=AG18,$W$18,IF($AF$19=AG18,$W$19,IF($AF$20=AG18,$W$20,IF($AF$21=AG18,$W$21))))) -> 
C19: D | D19: 1 | E19: 12 | F19: 11:30:00 | G19: 2 | H19: ='Poule QUALIF 16 P+B'!C36 -> T / 5 | I19: ='Poule QUALIF 16 P+B'!C38 -> T / 13 | J19: 0 | K19: 0 | L19: ='Poule QUALIF 16 P+B'!M36 -> 0 | M19: ='Poule QUALIF 16 P+B'!O36 -> 0 | N19: ='Poule QUALIF 16 P+B'!Q36 -> 0 | O19: ='Poule QUALIF 16 P+B'!S36 -> 0 | P19: ='Poule QUALIF 16 P+B'!U36 -> 0 | Q19: ='Poule QUALIF 16 P+B'!W36 -> 0 | W19: ='Poule QUALIF 16 P+B'!C29 -> T / 6 | X19: =COUNTIF(PLACE1,W19)*2+COUNTIF(PLACE2,W19) -> 0 | Y19: =SUMIF(LISTEE1,W19,(SCEQ1))+SUMIF(LISTEE2,W19,(SCEQ2)) -> 0 | Z19: =SUMIF(LISTEE1,W19,SCEQ2)+SUMIF(LISTEE2,W19,SCEQ1) -> 0 | AA19: =(SUMPRODUCT((LISTEE1=W19)*((S1EQ1)+(S2EQ1)+(S3EQ1))))+(SUMPRODUCT((LISTEE2=W19)*((S1EQ2)+(S2EQ2)+(S3EQ3)))) -> 0 | AB19: =(SUMPRODUCT((LISTEE2=W19)*((S1EQ1)+(S2EQ1)+(S3EQ1))))+(SUMPRODUCT((LISTEE1=W19)*((S1EQ2)+(S2EQ2)+(S3EQ3)))) -> 0 | AC19: 0 | AD19: 0 | AE19: =X19+AC19/100+AD19/100 -> 0 | AF19: =IF(X19=0,"",RANK(AE19,$AE$18:$AE$21)) ->  | AG19: 2 | AH19: =IF(X19=0,"",IF($AF$18=AG19,$W$18,IF($AF$19=AG19,$W$19,IF($AF$20=AG19,$W$20,IF($AF$21=AG19,$W$21))))) -> 
C20: A | D20: 1 | E20: 13 | F20: 12:00:00 | G20: 1 | H20: ='Poule QUALIF 16 P+B'!C14 -> T / 1 | I20: ='Poule QUALIF 16 P+B'!C16 -> T / 9 | J20: 0 | K20: 0 | L20: ='Poule QUALIF 16 P+B'!M16 -> 0 | M20: ='Poule QUALIF 16 P+B'!O16 -> 0 | N20: ='Poule QUALIF 16 P+B'!Q16 -> 0 | O20: ='Poule QUALIF 16 P+B'!S16 -> 0 | P20: ='Poule QUALIF 16 P+B'!U16 -> 0 | Q20: ='Poule QUALIF 16 P+B'!W16 -> 0 | R20: =IF(J20=K20,"",IF(J20>K20,H20,I20)) ->  | S20: =IF(J20=K20,"",IF(J20<K20,H20,I20)) ->  | W20: ='Poule QUALIF 16 P+B'!C30 -> T / 11 | X20: =COUNTIF(PLACE1,W20)*2+COUNTIF(PLACE2,W20) -> 0 | Y20: =SUMIF(LISTEE1,W20,(SCEQ1))+SUMIF(LISTEE2,W20,(SCEQ2)) -> 0 | Z20: =SUMIF(LISTEE1,W20,SCEQ2)+SUMIF(LISTEE2,W20,SCEQ1) -> 0 | AA20: =(SUMPRODUCT((LISTEE1=W20)*((S1EQ1)+(S2EQ1)+(S3EQ1))))+(SUMPRODUCT((LISTEE2=W20)*((S1EQ2)+(S2EQ2)+(S3EQ3)))) -> 0 | AB20: =(SUMPRODUCT((LISTEE2=W20)*((S1EQ1)+(S2EQ1)+(S3EQ1))))+(SUMPRODUCT((LISTEE1=W20)*((S1EQ2)+(S2EQ2)+(S3EQ3)))) -> 0 | AC20: 0 | AD20: 0 | AE20: 0 | AG20: 3 | AH20: =IF(X20=0,"",IF($AF$18=AG20,$W$18,IF($AF$19=AG20,$W$19,IF($AF$20=AG20,$W$20,IF($AF$21=AG20,$W$21))))) -> 
C21: B | D21: 1 | E21: 14 | F21: 12:00:00 | G21: 2 | H21: ='Poule QUALIF 16 P+B'!C21 -> T / 2 | I21: ='Poule QUALIF 16 P+B'!C23 -> T / 10 | J21: 0 | K21: 0 | L21: ='Poule QUALIF 16 P+B'!M23 -> 0 | M21: ='Poule QUALIF 16 P+B'!O23 -> 0 | N21: ='Poule QUALIF 16 P+B'!Q23 -> 0 | O21: ='Poule QUALIF 16 P+B'!S23 -> 0 | P21: ='Poule QUALIF 16 P+B'!U23 -> 0 | Q21: ='Poule QUALIF 16 P+B'!W23 -> 0 | W21: ='Poule QUALIF 16 P+B'!C31 -> T / 14 | X21: =COUNTIF(PLACE1,W21)*2+COUNTIF(PLACE2,W21) -> 0 | Y21: =SUMIF(LISTEE1,W21,(SCEQ1))+SUMIF(LISTEE2,W21,(SCEQ2)) -> 0 | Z21: =SUMIF(LISTEE1,W21,SCEQ2)+SUMIF(LISTEE2,W21,SCEQ1) -> 0 | AA21: =(SUMPRODUCT((LISTEE1=W21)*((S1EQ1)+(S2EQ1)+(S3EQ1))))+(SUMPRODUCT((LISTEE2=W21)*((S1EQ2)+(S2EQ2)+(S3EQ3)))) -> 0 | AB21: =(SUMPRODUCT((LISTEE2=W21)*((S1EQ1)+(S2EQ1)+(S3EQ1))))+(SUMPRODUCT((LISTEE1=W21)*((S1EQ2)+(S2EQ2)+(S3EQ3)))) -> 0 | AC21: 0 | AD21: 0 | AE21: =X21+AC21/100+AD21/100 -> 0 | AG21: 4 | AH21: =IF(X21=0,"",IF($AF$18=AG21,$W$18,IF($AF$19=AG21,$W$19,IF($AF$20=AG21,$W$20,IF($AF$21=AG21,$W$21))))) -> 
C22: C | D22: 1 | E22: 15 | F22: 12:30:00 | G22: 1 | H22: ='Poule QUALIF 16 P+B'!C28 -> T / 3 | I22: ='Poule QUALIF 16 P+B'!C30 -> T / 11 | J22: 0 | K22: 0 | L22: ='Poule QUALIF 16 P+B'!M30 -> 0 | M22: ='Poule QUALIF 16 P+B'!O30 -> 0 | N22: ='Poule QUALIF 16 P+B'!Q30 -> 0 | O22: ='Poule QUALIF 16 P+B'!S30 -> 0 | P22: ='Poule QUALIF 16 P+B'!U30 -> 0 | Q22: ='Poule QUALIF 16 P+B'!W30 -> 0
C23: D | D23: 1 | E23: 16 | F23: 12:30:00 | G23: 2 | H23: ='Poule QUALIF 16 P+B'!C35 -> T / 4 | I23: ='Poule QUALIF 16 P+B'!C37 -> T /12 | J23: 0 | K23: 0 | L23: ='Poule QUALIF 16 P+B'!M37 -> 0 | M23: ='Poule QUALIF 16 P+B'!O37 -> 0 | N23: ='Poule QUALIF 16 P+B'!Q37 -> 0 | O23: ='Poule QUALIF 16 P+B'!S37 -> 0 | P23: ='Poule QUALIF 16 P+B'!U37 -> 0 | Q23: ='Poule QUALIF 16 P+B'!W37 -> 0 | W23: ='Poule QUALIF 16 P+B'!C35 -> T / 4 | X23: =COUNTIF(PLACE1,W23)*2+COUNTIF(PLACE2,W23) -> 0 | Y23: =SUMIF(LISTEE1,W23,(SCEQ1))+SUMIF(LISTEE2,W23,(SCEQ2)) -> 0 | Z23: =SUMIF(LISTEE1,W23,SCEQ2)+SUMIF(LISTEE2,W23,SCEQ1) -> 0 | AA23: =(SUMPRODUCT((LISTEE1=W23)*((S1EQ1)+(S2EQ1)+(S3EQ1))))+(SUMPRODUCT((LISTEE2=W23)*((S1EQ2)+(S2EQ2)+(S3EQ3)))) -> 0 | AB23: =(SUMPRODUCT((LISTEE2=W23)*((S1EQ1)+(S2EQ1)+(S3EQ1))))+(SUMPRODUCT((LISTEE1=W23)*((S1EQ2)+(S2EQ2)+(S3EQ3)))) -> 0 | AC23: 0 | AD23: 0 | AE23: 0 | AF23: =IF(X23=0,"",RANK(AE23,$AE$23:$AE$26)) ->  | AG23: 1 | AH23: =IF(X23=0,"",IF($AF$23=AG23,$W$23,IF($AF$24=AG23,$W$24,IF($AF$25=AG23,$W$25,IF($AF$26=AG23,$W$26))))) -> 
C24: A | D24: 1 | E24: 17 | F24: 13:00:00 | G24: 1 | H24: ='Poule QUALIF 16 P+B'!C16 -> T / 9 | I24: ='Poule QUALIF 16 P+B'!C17 -> T / 16 | J24: 0 | K24: 0 | L24: ='Poule QUALIF 16 P+B'!M17 -> 0 | M24: ='Poule QUALIF 16 P+B'!O17 -> 0 | N24: ='Poule QUALIF 16 P+B'!Q17 -> 0 | O24: ='Poule QUALIF 16 P+B'!S17 -> 0 | P24: ='Poule QUALIF 16 P+B'!U17 -> 0 | Q24: ='Poule QUALIF 16 P+B'!W17 -> 0 | R24: =IF(J24=K24,"",IF(J24>K24,H24,I24)) ->  | S24: =IF(J24=K24,"",IF(J24<K24,H24,I24)) ->  | W24: ='Poule QUALIF 16 P+B'!C36 -> T / 5 | X24: =COUNTIF(PLACE1,W24)*2+COUNTIF(PLACE2,W24) -> 0 | Y24: =SUMIF(LISTEE1,W24,(SCEQ1))+SUMIF(LISTEE2,W24,(SCEQ2)) -> 0 | Z24: =SUMIF(LISTEE1,W24,SCEQ2)+SUMIF(LISTEE2,W24,SCEQ1) -> 0 | AA24: =(SUMPRODUCT((LISTEE1=W24)*((S1EQ1)+(S2EQ1)+(S3EQ1))))+(SUMPRODUCT((LISTEE2=W24)*((S1EQ2)+(S2EQ2)+(S3EQ3)))) -> 0 | AB24: =(SUMPRODUCT((LISTEE2=W24)*((S1EQ1)+(S2EQ1)+(S3EQ1))))+(SUMPRODUCT((LISTEE1=W24)*((S1EQ2)+(S2EQ2)+(S3EQ3)))) -> 0 | AC24: 0 | AD24: 0 | AE24: 0 | AF24: =IF(X24=0,"",RANK(AE24,$AE$23:$AE$26)) ->  | AG24: 2 | AH24: =IF(X24=0,"",IF($AF$23=AG24,$W$23,IF($AF$24=AG24,$W$24,IF($AF$25=AG24,$W$25,IF($AF$26=AG24,$W$26))))) -> 
C25: B | D25: 1 | E25: 18 | F25: 13:00:00 | G25: 2 | H25: ='Poule QUALIF 16 P+B'!C23 -> T / 10 | I25: ='Poule QUALIF 16 P+B'!C24 -> T / 15 | J25: 0 | K25: 0 | L25: ='Poule QUALIF 16 P+B'!M24 -> 0 | M25: ='Poule QUALIF 16 P+B'!O24 -> 0 | N25: ='Poule QUALIF 16 P+B'!Q24 -> 0 | O25: ='Poule QUALIF 16 P+B'!S24 -> 0 | P25: ='Poule QUALIF 16 P+B'!U24 -> 0 | Q25: ='Poule QUALIF 16 P+B'!W24 -> 0 | W25: ='Poule QUALIF 16 P+B'!C37 -> T /12 | X25: =COUNTIF(PLACE1,W25)*2+COUNTIF(PLACE2,W25) -> 0 | Y25: =SUMIF(LISTEE1,W25,(SCEQ1))+SUMIF(LISTEE2,W25,(SCEQ2)) -> 0 | Z25: =SUMIF(LISTEE1,W25,SCEQ2)+SUMIF(LISTEE2,W25,SCEQ1) -> 0 | AA25: =(SUMPRODUCT((LISTEE1=W25)*((S1EQ1)+(S2EQ1)+(S3EQ1))))+(SUMPRODUCT((LISTEE2=W25)*((S1EQ2)+(S2EQ2)+(S3EQ3)))) -> 0 | AB25: =(SUMPRODUCT((LISTEE2=W25)*((S1EQ1)+(S2EQ1)+(S3EQ1))))+(SUMPRODUCT((LISTEE1=W25)*((S1EQ2)+(S2EQ2)+(S3EQ3)))) -> 0 | AC25: 0 | AD25: 0 | AE25: 0 | AG25: 3
C26: C | D26: 1 | E26: 19 | F26: 13:30:00 | G26: 1 | H26: ='Poule QUALIF 16 P+B'!C30 -> T / 11 | I26: ='Poule QUALIF 16 P+B'!C31 -> T / 14 | J26: 0 | K26: 0 | L26: ='Poule QUALIF 16 P+B'!M31 -> 0 | M26: ='Poule QUALIF 16 P+B'!O31 -> 0 | N26: ='Poule QUALIF 16 P+B'!Q31 -> 0 | O26: ='Poule QUALIF 16 P+B'!S31 -> 0 | P26: ='Poule QUALIF 16 P+B'!U31 -> 0 | Q26: ='Poule QUALIF 16 P+B'!W31 -> 0 | W26: ='Poule QUALIF 16 P+B'!C38 -> T / 13 | X26: =COUNTIF(PLACE1,W26)*2+COUNTIF(PLACE2,W26) -> 0 | Y26: =SUMIF(LISTEE1,W26,(SCEQ1))+SUMIF(LISTEE2,W26,(SCEQ2)) -> 0 | Z26: =SUMIF(LISTEE1,W26,SCEQ2)+SUMIF(LISTEE2,W26,SCEQ1) -> 0 | AA26: =(SUMPRODUCT((LISTEE1=W26)*((S1EQ1)+(S2EQ1)+(S3EQ1))))+(SUMPRODUCT((LISTEE2=W26)*((S1EQ2)+(S2EQ2)+(S3EQ3)))) -> 0 | AB26: =(SUMPRODUCT((LISTEE2=W26)*((S1EQ1)+(S2EQ1)+(S3EQ1))))+(SUMPRODUCT((LISTEE1=W26)*((S1EQ2)+(S2EQ2)+(S3EQ3)))) -> 0 | AC26: 0 | AD26: 0 | AE26: 0 | AG26: 4 | AH26: =IF(X26=0,"",IF($AF$23=AG26,$W$23,IF($AF$24=AG26,$W$24,IF($AF$25=AG26,$W$25,IF($AF$26=AG26,$W$26))))) -> 
C27: D | D27: 1 | E27: 20 | F27: 13:30:00 | G27: 2 | H27: ='Poule QUALIF 16 P+B'!C37 -> T /12 | I27: ='Poule QUALIF 16 P+B'!C38 -> T / 13 | J27: 0 | K27: 0 | L27: ='Poule QUALIF 16 P+B'!M38 -> 0 | M27: ='Poule QUALIF 16 P+B'!O38 -> 0 | N27: ='Poule QUALIF 16 P+B'!Q38 -> 0 | O27: ='Poule QUALIF 16 P+B'!S38 -> 0 | P27: ='Poule QUALIF 16 P+B'!U38 -> 0 | Q27: ='Poule QUALIF 16 P+B'!W38 -> 0
C28: A | D28: 1 | E28: 21 | F28: 14:00:00 | G28: 1 | H28: ='Poule QUALIF 16 P+B'!C14 -> T / 1 | I28: ='Poule QUALIF 16 P+B'!C15 -> T / 8 | J28: 0 | K28: 0 | L28: ='Poule QUALIF 16 P+B'!M18 -> 0 | M28: ='Poule QUALIF 16 P+B'!O18 -> 0 | N28: ='Poule QUALIF 16 P+B'!Q18 -> 0 | O28: ='Poule QUALIF 16 P+B'!S18 -> 0 | P28: ='Poule QUALIF 16 P+B'!U18 -> 0 | Q28: ='Poule QUALIF 16 P+B'!W18 -> 0 | R28: =IF(J28=K28,"",IF(J28>K28,H28,I28)) ->  | S28: =IF(J28=K28,"",IF(J28<K28,H28,I28)) -> 
C29: B | D29: 1 | E29: 22 | F29: 14:00:00 | G29: 2 | H29: ='Poule QUALIF 16 P+B'!C21 -> T / 2 | I29: ='Poule QUALIF 16 P+B'!C22 -> T / 7 | J29: 0 | K29: 0 | L29: ='Poule QUALIF 16 P+B'!M25 -> 0 | M29: ='Poule QUALIF 16 P+B'!O25 -> 0 | N29: ='Poule QUALIF 16 P+B'!Q25 -> 0 | O29: ='Poule QUALIF 16 P+B'!S25 -> 0 | P29: ='Poule QUALIF 16 P+B'!U25 -> 0 | Q29: ='Poule QUALIF 16 P+B'!W25 -> 0
C30: C | D30: 1 | E30: 23 | F30: 14:30:00 | G30: 1 | H30: ='Poule QUALIF 16 P+B'!C28 -> T / 3 | I30: ='Poule QUALIF 16 P+B'!C29 -> T / 6 | J30: 0 | K30: 0 | L30: ='Poule QUALIF 16 P+B'!M32 -> 0 | M30: ='Poule QUALIF 16 P+B'!O32 -> 0 | N30: ='Poule QUALIF 16 P+B'!Q32 -> 0 | O30: ='Poule QUALIF 16 P+B'!S32 -> 0 | P30: ='Poule QUALIF 16 P+B'!U32 -> 0 | Q30: ='Poule QUALIF 16 P+B'!W32 -> 0
C31: D | D31: 1 | E31: 24 | F31: 14:30:00 | G31: 2 | H31: ='Poule QUALIF 16 P+B'!C35 -> T / 4 | I31: ='Poule QUALIF 16 P+B'!C36 -> T / 5 | J31: 0 | K31: 0 | L31: ='Poule QUALIF 16 P+B'!M39 -> 0 | M31: ='Poule QUALIF 16 P+B'!O39 -> 0 | N31: ='Poule QUALIF 16 P+B'!Q39 -> 0 | O31: ='Poule QUALIF 16 P+B'!S39 -> 0 | P31: ='Poule QUALIF 16 P+B'!U39 -> 0 | Q31: ='Poule QUALIF 16 P+B'!W39 -> 0 | R31: =IF(J31=K31,"",IF(J31>K31,H31,I31)) -> 
C32: BARR | D32: 1 | E32: 25 | F32: 15:00:00 | G32: 1 | H32: ='Poule QUALIF 16 P+B'!AD13 -> 0 | I32: ='Poule QUALIF 16 P+B'!AD16 -> 0 | J32: =SUM(IF(L32>M32,1,0),IF(N32>O32,1,0),IF(P32>Q32,1,0)) -> 0 | K32: =SUM(IF(M32>L32,1,0),IF(O32>N32,1,0),IF(Q32>P32,1,0)) -> 0 | L32: ='Poule QUALIF 16 P+B'!AG14 -> 0 | M32: ='Poule QUALIF 16 P+B'!AI14 -> 0 | N32: ='Poule QUALIF 16 P+B'!AK14 -> 0 | O32: ='Poule QUALIF 16 P+B'!AM14 -> 0 | P32: ='Poule QUALIF 16 P+B'!AO14 -> 0 | Q32: ='Poule QUALIF 16 P+B'!AQ14 -> 0 | R32: =IF(J32=K32,"",IF(J32>K32,H32,I32)) -> 
C33: BARR | D33: 1 | E33: 26 | F33: 15:00:00 | G33: 2 | H33: ='Poule QUALIF 16 P+B'!AD19 -> 0 | I33: ='Poule QUALIF 16 P+B'!AD22 -> 0 | J33: 0 | K33: 0 | L33: ='Poule QUALIF 16 P+B'!AG20 -> 0 | M33: ='Poule QUALIF 16 P+B'!AI20 -> 0 | N33: ='Poule QUALIF 16 P+B'!AK20 -> 0 | O33: ='Poule QUALIF 16 P+B'!AM20 -> 0 | P33: ='Poule QUALIF 16 P+B'!AO20 -> 0 | Q33: ='Poule QUALIF 16 P+B'!AQ20 -> 0 | R33: =IF(J33=K33,"",IF(J33>K33,H33,I33)) -> 
C34: BARR | D34: 1 | E34: 27 | F34: 15:30:00 | G34: 1 | H34: =AH9 ->  | J34: 0 | K34: 0
C35: BARR | D35: 1 | E35: 28 | F35: 15:30:00 | G35: 2 | H35: =AH24 ->  | J35: 0 | K35: 0
C36: 1/4 | D36: 1 | E36: 29 | F36: 16:00:00 | G36: 1 | H36: =AH8 ->  | I36: =R32 ->  | J36: 0 | K36: 0
C37: 1/4 | D37: 1 | E37: 30 | F37: 16:00:00 | G37: 2 | H37: =AH23 ->  | I37: =R33 ->  | J37: 0 | K37: 0
C38: 1/4 | D38: 1 | E38: 31 | F38: 16:30:00 | G38: 1 | H38: =AH18 ->  | I38: =R34 ->  | J38: 0 | K38: 0
C39: 1/4 | D39: 1 | E39: 32 | F39: 16:30:00 | G39: 2 | H39: =AH13 ->  | I39: =R35 ->  | J39: 0 | K39: 0
C40: 1/2 | D40: 1 | E40: 33 | F40: 17:00:00 | H40: =R36 ->  | I40: =R37 ->  | J40: 0 | K40: 0
C41: 1/2 | D41: 1 | E41: 34 | F41: =F40+$B$4 -> 17:30:00 | H41: =R39 ->  | I41: =R38 ->  | J41: 0 | K41: 0
C42: 3-4 | D42: 1 | E42: 35 | F42: =F41+$B$4 -> 18:00:00 | H42: =S40 ->  | I42: =S41 ->  | J42: 0 | K42: 0
C43: F | D43: 1 | E43: 36 | F43: =F42+$B$4 -> 18:30:00 | H43: =R40 ->  | I43: =R41 ->  | J43: 0 | K43: 0

Sheet Poule QUALIF 16 P+B
G1: =IF('LISTE ENGAGES'!Q3="",'LISTE ENGAGES'!P3,'LISTE ENGAGES'!Q3) -> APPELATION TOURNOI | AA1: ='LISTE ENGAGES'!H1:H3 -> ORGANISATEUR
G5: =IF('LISTE ENGAGES'!Q4="",'LISTE ENGAGES'!P4,'LISTE ENGAGES'!Q4) -> LIEU | R5: ='LISTE ENGAGES'!F4 -> DATE | X5: ='LISTE ENGAGES'!H4 -> GENRE
G6: =IF('LISTE ENGAGES'!Q5<>"",'LISTE ENGAGES'!Q5,'LISTE ENGAGES'!P5) -> TYPE
G7: TABLEAU DE QUALIFICATION
C11: POULES | M11: RESULTATS | AA11: CLASS. POUL | AD11: BARRAGES | AX11: CLASSEMENT FINAL
D12: ORDRE | G12: H | H12: T | I12: A | K12: SCORE | M12: Set 1 | Q12: Set 2 | U12: Set 3 | Z12: POULE
D13: 1-4 | E13: =CONCATENATE(C14," - ",C17) -> T / 1 - T / 16 | F13: (1) | G13: ='PLANNING PS 16'!D17 -> 09:00:00 | K13: =CONCATENATE("(",'SCORE QUALIF'!J8,"/",'SCORE QUALIF'!K8,")") -> (0/0) | L13: : | N13: / | P13: ; | R13: / | T13: ; | V13: / | AE13: SCORE | AG13: Set 1 | AK13: Set 2 | AO13: Set 3 | AX13: Qualifié - | AY13: =AA14 -> 
B14: T1 | C14: =CONCATENATE('EMARG M Tableau QUALIF'!C9," / ",'EMARG M Tableau QUALIF'!G9) -> T / 1 | D14: 2-3 | E14: =CONCATENATE(C15," - ",C16) -> T / 8 - T / 9 | F14: (5) | K14: =CONCATENATE("(",'SCORE QUALIF'!J12,"/",'SCORE QUALIF'!K12,")") -> (0/0) | L14: : | N14: / | P14: ; | R14: / | T14: ; | V14: / | Z14: 1 | AA14: ='SCORE QUALIF'!AH8 ->  | AE14: =CONCATENATE("(",'SCORE QUALIF'!J32,"/",'SCORE QUALIF'!K32,")") -> (0/0) | AH14: / | AL14: / | AP14: / | AX14: Qualifié - | AY14: =AA21 -> 
A15: A | B15: T8 | C15: =CONCATENATE('EMARG M Tableau QUALIF'!C16," / ",'EMARG M Tableau QUALIF'!G16) -> T / 8 | D15: 2-4 | E15: =CONCATENATE(C15," - ",C17) -> T / 8 - T / 16 | F15: (9) | K15: =CONCATENATE("(",'SCORE QUALIF'!J16,"/",'SCORE QUALIF'!K16,")") -> (0/0) | L15: : | N15: / | P15: ; | R15: / | T15: ; | V15: / | Z15: 2 | AA15: ='SCORE QUALIF'!AH9 ->  | AC15: (B1) | AG15: HEURE | AK15: TERR | AO15: ARB. | AX15: Qualifié - | AY15: =AA28 -> 
B16: T9 | C16: =CONCATENATE('EMARG M Tableau QUALIF'!C17," / ",'EMARG M Tableau QUALIF'!G17) -> T / 9 | D16: 1-3 | E16: =CONCATENATE(C14," - ",C16) -> T / 1 - T / 9 | F16: (13) | K16: =CONCATENATE("(",'SCORE QUALIF'!J20,"/",'SCORE QUALIF'!K20,")") -> (0/0) | L16: : | N16: / | P16: ; | R16: / | T16: ; | V16: / | Z16: 3 | AA16: ='SCORE QUALIF'!AH10 ->  | AX16: Qualifié - | AY16: =AA35 -> 
B17: T16 | C17: =CONCATENATE('EMARG M Tableau QUALIF'!C24," / ",'EMARG M Tableau QUALIF'!G24) -> T / 16 | D17: 3-4 | E17: =CONCATENATE(C16," - ",C17) -> T / 9 - T / 16 | F17: (17) | K17: =CONCATENATE("(",'SCORE QUALIF'!J24,"/",'SCORE QUALIF'!K24,")") -> (0/0) | L17: : | N17: / | P17: ; | R17: / | T17: ; | V17: / | Z17: 4 | AA17: ='SCORE QUALIF'!AH11 ->  | AX17: Qualifié - | AY17: ='SCORE QUALIF'!R32 -> 
D18: 1-2 | E18: =CONCATENATE(C14," - ",C15) -> T / 1 - T / 8 | F18: (21) | K18: =CONCATENATE("(",'SCORE QUALIF'!J28,"/",'SCORE QUALIF'!K28,")") -> (0/0) | L18: : | N18: / | P18: ; | R18: / | T18: ; | V18: / | AX18: Qualifié - | AY18: ='SCORE QUALIF'!R33 -> 
AE19: SCORE | AG19: Set 1 | AK19: Set 2 | AO19: Set 3 | AX19: 7 - | AY19: ='SCORE QUALIF'!S32 -> 
D20: 1-4 | E20: =CONCATENATE(C21," - ",C24) -> T / 2 - T / 15 | F20: (3) | K20: =CONCATENATE("(",'SCORE QUALIF'!J9,"/",'SCORE QUALIF'!K9,")") -> (0/0) | L20: : | N20: / | P20: ; | R20: / | T20: ; | V20: / | AE20: =CONCATENATE("(",'SCORE QUALIF'!J33,"/",'SCORE QUALIF'!K33,")") -> (0/0) | AH20: / | AL20: / | AP20: / | AX20: 8 - | AY20: ='SCORE QUALIF'!S33 -> 
B21: T2 | C21: =CONCATENATE('EMARG M Tableau QUALIF'!C10," / ",'EMARG M Tableau QUALIF'!G10) -> T / 2 | D21: 2-3 | E21: =CONCATENATE(C22," - ",C23) -> T / 7 - T / 10 | F21: (7) | K21: =CONCATENATE("(",'SCORE QUALIF'!J13,"/",'SCORE QUALIF'!K13,")") -> (0/0) | L21: : | N21: / | P21: ; | R21: / | T21: ; | V21: / | Z21: 1 | AA21: ='SCORE QUALIF'!AH13 ->  | AC21: (B2) | AG21: HEURE | AK21: TERR | AO21: ARB. | AX21: 9 - | AY21: =AA16 -> 
A22: B | B22: T7 | C22: =CONCATENATE('EMARG M Tableau QUALIF'!C15," / ",'EMARG M Tableau QUALIF'!G15) -> T / 7 | D22: 2-4 | E22: =CONCATENATE(C22," - ",C24) -> T / 7 - T / 15 | F22: (11) | K22: =CONCATENATE("(",'SCORE QUALIF'!J17,"/",'SCORE QUALIF'!K17,")") -> (0/0) | L22: : | N22: / | P22: ; | R22: / | T22: ; | V22: / | Z22: 2 | AA22: ='SCORE QUALIF'!AH14 ->  | AX22: 10 - | AY22: =AA23 -> 
B23: T10 | C23: =CONCATENATE('EMARG M Tableau QUALIF'!C18," / ",'EMARG M Tableau QUALIF'!G18) -> T / 10 | D23: 1-3 | E23: =CONCATENATE(C21," - ",C23) -> T / 2 - T / 10 | F23: (15) | K23: =CONCATENATE("(",'SCORE QUALIF'!J21,"/",'SCORE QUALIF'!K21,")") -> (0/0) | L23: : | N23: / | P23: ; | R23: / | T23: ; | V23: / | Z23: 3 | AA23: ='SCORE QUALIF'!AH15 ->  | AX23: 11 - | AY23: =AA30 -> 
B24: T15 | C24: =CONCATENATE('EMARG M Tableau QUALIF'!C23," / ",'EMARG M Tableau QUALIF'!G23) -> T / 15 | D24: 3-4 | E24: =CONCATENATE(C23," - ",C24) -> T / 10 - T / 15 | F24: (19) | K24: =CONCATENATE("(",'SCORE QUALIF'!J25,"/",'SCORE QUALIF'!K25,")") -> (0/0) | L24: : | N24: / | P24: ; | R24: / | T24: ; | V24: / | Z24: 4 | AA24: ='SCORE QUALIF'!AH16 ->  | AX24: 12 - | AY24: =AA37 -> 
D25: 1-2 | E25: =CONCATENATE(C21," - ",C24) -> T / 2 - T / 15 | F25: (23) | K25: =CONCATENATE("(",'SCORE QUALIF'!J29,"/",'SCORE QUALIF'!K29,")") -> (0/0) | L25: : | N25: / | P25: ; | R25: / | T25: ; | V25: / | AX25: 13 - | AY25: =AA17 -> 
AX26: 14 - | AY26: =AA24 -> 
D27: 1-4 | E27: =CONCATENATE(C28," - ",C31) -> T / 3 - T / 14 | F27: (2) | G27: ='PLANNING PS 16'!D17 -> 09:00:00 | K27: =CONCATENATE("(",'SCORE QUALIF'!J10,"/",'SCORE QUALIF'!K10,")") -> (0/0) | L27: : | N27: / | P27: ; | R27: / | T27: ; | V27: / | AX27: 15 - | AY27: =AA31 -> 
B28: T3 | C28: =CONCATENATE('EMARG M Tableau QUALIF'!C11," / ",'EMARG M Tableau QUALIF'!G11) -> T / 3 | D28: 2-3 | E28: =CONCATENATE(C29," - ",C30) -> T / 6 - T / 11 | F28: (6) | K28: =CONCATENATE("(",'SCORE QUALIF'!J14,"/",'SCORE QUALIF'!K14,")") -> (0/0) | L28: : | N28: / | P28: ; | R28: / | T28: ; | V28: / | Z28: 1 | AA28: ='SCORE QUALIF'!AH18 ->  | AX28: 16 - | AY28: =AA38 -> 
A29: C | B29: T6 | C29: =CONCATENATE('EMARG M Tableau QUALIF'!C14," / ",'EMARG M Tableau QUALIF'!G14) -> T / 6 | D29: 2-4 | E29: =CONCATENATE(C29," - ",C31) -> T / 6 - T / 14 | F29: (10) | K29: =CONCATENATE("(",'SCORE QUALIF'!J18,"/",'SCORE QUALIF'!K18,")") -> (0/0) | L29: : | N29: / | P29: ; | R29: / | T29: ; | V29: / | Z29: 2 | AA29: ='SCORE QUALIF'!AH19 -> 
B30: T11 | C30: =CONCATENATE('EMARG M Tableau QUALIF'!C19," / ",'EMARG M Tableau QUALIF'!G19) -> T / 11 | D30: 1-3 | E30: =CONCATENATE(C28," - ",C30) -> T / 3 - T / 11 | F30: (14) | K30: =CONCATENATE("(",'SCORE QUALIF'!J22,"/",'SCORE QUALIF'!K22,")") -> (0/0) | L30: : | N30: / | P30: ; | R30: / | T30: ; | V30: / | Z30: 3 | AA30: ='SCORE QUALIF'!AH20 -> 
B31: T14 | C31: =CONCATENATE('EMARG M Tableau QUALIF'!C22," / ",'EMARG M Tableau QUALIF'!G22) -> T / 14 | D31: 3-4 | E31: =CONCATENATE(C30," - ",C31) -> T / 11 - T / 14 | F31: (18) | K31: =CONCATENATE("(",'SCORE QUALIF'!J26,"/",'SCORE QUALIF'!K26,")") -> (0/0) | L31: : | N31: / | P31: ; | R31: / | T31: ; | V31: / | Z31: 4 | AA31: ='SCORE QUALIF'!AH21 -> 
D32: 1-2 | E32: =CONCATENATE(C28," - ",C29) -> T / 3 - T / 6 | F32: (22) | K32: =CONCATENATE("(",'SCORE QUALIF'!J30,"/",'SCORE QUALIF'!K30,")") -> (0/0) | L32: : | N32: / | P32: ; | R32: / | T32: ; | V32: /
D34: 1-4 | E34: =CONCATENATE(C35," - ",C38) -> T / 4 - T / 13 | F34: (4) | K34: =CONCATENATE("(",'SCORE QUALIF'!J11,"/",'SCORE QUALIF'!K11,")") -> (0/0) | L34: : | N34: / | P34: ; | R34: / | T34: ; | V34: /
B35: T4 | C35: =CONCATENATE('EMARG M Tableau QUALIF'!C12," / ",'EMARG M Tableau QUALIF'!G12) -> T / 4 | D35: 2-3 | E35: =CONCATENATE(C36," - ",C37) -> T / 5 - T /12 | F35: (8) | K35: =CONCATENATE("(",'SCORE QUALIF'!J15,"/",'SCORE QUALIF'!K15,")") -> (0/0) | L35: : | N35: / | P35: ; | R35: / | T35: ; | V35: / | Z35: 1 | AA35: ='SCORE QUALIF'!AH23 -> 
A36: D | B36: T5 | C36: =CONCATENATE('EMARG M Tableau QUALIF'!C13," / ",'EMARG M Tableau QUALIF'!G13) -> T / 5 | D36: 2-4 | E36: =CONCATENATE(C36," - ",C38) -> T / 5 - T / 13 | F36: (12) | K36: =CONCATENATE("(",'SCORE QUALIF'!J19,"/",'SCORE QUALIF'!K19,")") -> (0/0) | L36: : | N36: / | P36: ; | R36: / | T36: ; | V36: / | Z36: 2 | AA36: ='SCORE QUALIF'!AH24 -> 
B37: T12 | C37: =CONCATENATE('EMARG M Tableau QUALIF'!C20," /",'EMARG M Tableau QUALIF'!G20) -> T /12 | D37: 1-3 | E37: =CONCATENATE(C35," - ",C37) -> T / 4 - T /12 | F37: (16) | K37: =CONCATENATE("(",'SCORE QUALIF'!J23,"/",'SCORE QUALIF'!K23,")") -> (0/0) | L37: : | N37: / | P37: ; | R37: / | T37: ; | V37: / | Z37: 3 | AA37: ='SCORE QUALIF'!AH25 -> 
B38: T13 | C38: =CONCATENATE('EMARG M Tableau QUALIF'!C21," / ",'EMARG M Tableau QUALIF'!G21) -> T / 13 | D38: 3-4 | E38: =CONCATENATE(C37," - ",C38) -> T /12 - T / 13 | F38: (20) | K38: =CONCATENATE("(",'SCORE QUALIF'!J27,"/",'SCORE QUALIF'!K27,")") -> (0/0) | L38: : | N38: / | P38: ; | R38: / | T38: ; | V38: / | Z38: 4 | AA38: ='SCORE QUALIF'!AH26 -> 
D39: 1-2 | E39: =CONCATENATE(C35," - ",C36) -> T / 4 - T / 5 | F39: (24) | K39: =CONCATENATE("(",'SCORE QUALIF'!J31,"/",'SCORE QUALIF'!K31,")") -> (0/0) | L39: : | N39: / | P39: ; | R39: / | T39: ; | V39: /

Sheet EMARG M Tableau PRIN
D2: =IF('LISTE ENGAGES'!Q3="",'LISTE ENGAGES'!P3,'LISTE ENGAGES'!Q3) -> APPELATION TOURNOI | N2: ='LISTE ENGAGES'!H1:H3 -> 0
D4: =IF('LISTE ENGAGES'!Q4="",'LISTE ENGAGES'!P4,'LISTE ENGAGES'!Q4) -> LIEU | H4: ='LISTE ENGAGES'!F4 -> DATE | M4: ='LISTE ENGAGES'!H4 -> GENRE
D5: =IF('LISTE ENGAGES'!Q5<>"",'LISTE ENGAGES'!Q5,'LISTE ENGAGES'!P5) -> TYPE
D6: FEUILLE EMARGEMENT
A8: N° | C8: NOM | D8: PRENOM | E8: LICENCE | F8: CLUB | G8: NOM | H8: PRENOM | I8: LICENCE | J8: CLUB | K8: pts | L8: tir | M8: SIGNATURE JOUEUR1 | N8: SIGNATURE JOUEUR2 | O8: Rglt
A9: 1 | C9: T | G9: 1
A10: 2 | C10: T | G10: 2
A11: 3 | C11: T | G11: 3
A12: 4 | C12: T | G12: 4
A13: 5 | C13: T | G13: 5
A14: 6 | C14: T | G14: 6
A15: 7 | C15: T | G15: 7
A16: 8 | C16: T | G16: 8
A17: 9 | C17: T | G17: 9
A18: 10 | C18: T | G18: 10
A19: 11 | C19: T | G19: 11
A20: 12 | C20: T | G20: 12
A21: 13 | C21: T | G21: 13
A22: 14 | C22: T | G22: 14
A23: 15 | C23: T | G23: 15
A24: 16 | C24: T | G24: 16
C26: Copier/coller selon LISTE ENGAGES en fonction des équipes confirmées APRES les qualifications
C27: ATTENTION : Respecter l'ordre des têtes de séries en fonction des points et classement de la LISTE ENGAGES
C28: Ex: Si Sur LISTE ENGAGES, l'équipe 9 absente, la numéro 10 devient la numéro 9 dans EMARG
C29: EX: Si toutes les equipes du tableau principal sont confirmées, les équipes issues qualifications sont replacées en fonction de leurs points, en bas de tableau

Sheet PLANNING PS 16
H2: =IF('LISTE ENGAGES'!Q3<>"",'LISTE ENGAGES'!Q3,'LISTE ENGAGES'!P3) -> APPELATION TOURNOI | Q2: ='LISTE ENGAGES'!H1:H3 -> 0
B4: J1 | C4: HEURE DEBUT | E4: 09:00:00
C5: DUREE MATCH | E5: 00:35:00
H6: =IF('LISTE ENGAGES'!Q4="",'LISTE ENGAGES'!P4,'LISTE ENGAGES'!Q4) -> LIEU | K6: ='LISTE ENGAGES'!F4 -> DATE | O6: ='LISTE ENGAGES'!H4 -> GENRE
H7: =IF('LISTE ENGAGES'!Q5<>"",'LISTE ENGAGES'!Q5,'LISTE ENGAGES'!P5) -> TYPE
H8: PLANNING DES RENCONTRES
B9: J2 | C9: HEURE DEBUT | E9: 09:00:00
C10: DUREE MATCH | E10: 01:00:00
E16: MATCH | F16: n° | G16: TER. | H16: E1 | I16: ./. | J16: E2 | K16: ARB | L16: MATCH | M16: n° | N16: TER. | O16: E1 | P16: ./. | Q16: E2 | R16: ARB | S16: 2*15, SD 11
C17: JOUR 1 | D17: =E4 -> 09:00:00 | E17: AM1 | F17: 1 | H17: ='Poule 16 PS'!C14 -> T / 1 | J17: ='Poule 16 PS'!C17 -> T / 16 | L17: CM1 | M17: 2 | O17: ='Poule 16 PS'!C28 -> T / 3 | Q17: ='Poule 16 PS'!C31 -> T / 14 | S17: 2*15, SD 11
D18: =D17+$E$5 -> 09:35:00 | E18: BM1 | F18: 3 | H18: ='Poule 16 PS'!C21 -> T / 2 | J18: ='Poule 16 PS'!C24 -> T / 15 | L18: DM1 | M18: 4 | O18: ='Poule 16 PS'!C35 -> T / 4 | Q18: ='Poule 16 PS'!C38 -> T / 13 | S18: 2*15, SD 11
D19: =D18+$E$5 -> 10:10:00 | E19: AM2 | F19: 5 | H19: ='Poule 16 PS'!C15 -> T / 8 | J19: ='Poule 16 PS'!C16 -> T / 9 | L19: CM2 | M19: 6 | O19: ='Poule 16 PS'!C29 -> T / 6 | Q19: ='Poule 16 PS'!C30 -> T / 11 | S19: 2*15, SD 11
D20: 10:45:00 | E20: BM2 | F20: 7 | H20: ='Poule 16 PS'!C22 -> T / 7 | J20: ='Poule 16 PS'!C23 -> T / 10 | L20: DM2 | M20: 8 | O20: ='Poule 16 PS'!C36 -> T / 5 | Q20: ='Poule 16 PS'!C37 -> T /12 | S20: 2*15, SD 11
D21: 11:20:00 | E21: AM3 | F21: 9 | H21: ='Poule 16 PS'!C15 -> T / 8 | J21: ='Poule 16 PS'!C17 -> T / 16 | L21: CM3 | M21: 10 | O21: ='Poule 16 PS'!C29 -> T / 6 | Q21: ='Poule 16 PS'!C31 -> T / 14 | S21: 2*15, SD 11
D22: 11:55:00 | E22: BM3 | F22: 11 | H22: ='Poule 16 PS'!C22 -> T / 7 | J22: ='Poule 16 PS'!C24 -> T / 15 | L22: DM3 | M22: 12 | O22: ='Poule 16 PS'!C36 -> T / 5 | Q22: ='Poule 16 PS'!C38 -> T / 13 | S22: 2*15, SD 11
D23: 12:30:00 | E23: AM4 | F23: 13 | H23: ='Poule 16 PS'!C14 -> T / 1 | J23: ='Poule 16 PS'!C16 -> T / 9 | L23: CM4 | M23: 14 | O23: ='Poule 16 PS'!C28 -> T / 3 | Q23: ='Poule 16 PS'!C30 -> T / 11 | S23: 2*15, SD 11
D24: 13:05:00 | E24: BM4 | F24: 15 | H24: ='Poule 16 PS'!C21 -> T / 2 | J24: ='Poule 16 PS'!C23 -> T / 10 | L24: DM4 | M24: 16 | O24: ='Poule 16 PS'!C35 -> T / 4 | Q24: ='Poule 16 PS'!C37 -> T /12 | S24: 2*15, SD 11
D25: 13:40:00 | E25: AM5 | F25: 17 | H25: ='Poule 16 PS'!C16 -> T / 9 | J25: ='Poule 16 PS'!C17 -> T / 16 | L25: CM5 | M25: 18 | O25: ='Poule 16 PS'!C30 -> T / 11 | Q25: ='Poule 16 PS'!C31 -> T / 14 | S25: 2*15, SD 11
D26: 14:15:00 | E26: BM5 | F26: 19 | H26: ='Poule 16 PS'!C23 -> T / 10 | J26: ='Poule 16 PS'!C24 -> T / 15 | L26: DM5 | M26: 20 | O26: ='Poule 16 PS'!C37 -> T /12 | Q26: ='Poule 16 PS'!C38 -> T / 13 | S26: 2*15, SD 11
D27: 14:50:00 | E27: AM6 | F27: 21 | H27: ='Poule 16 PS'!C14 -> T / 1 | J27: ='Poule 16 PS'!C15 -> T / 8 | L27: CM6 | M27: 22 | O27: ='Poule 16 PS'!C28 -> T / 3 | Q27: ='Poule 16 PS'!C29 -> T / 6 | S27: 2*15, SD 11
D28: 15:25:00 | E28: BM6 | F28: 23 | H28: ='Poule 16 PS'!C21 -> T / 2 | J28: ='Poule 16 PS'!C22 -> T / 7 | L28: DM6 | M28: 24 | O28: ='Poule 16 PS'!C35 -> T / 4 | Q28: ='Poule 16 PS'!C36 -> T / 5 | S28: 2*15, SD 11
D29: 16:00:00 | E29: PAUSE
D30: 16:35:00 | E30: BARRAGE | F30: B1 | H30: ='Poule 16 PS'!AD13 ->  | J30: ='Poule 16 PS'!AD16 ->  | L30: BARR. | M30: B2 | O30: ='Poule 16 PS'!AD19 ->  | Q30: ='Poule 16 PS'!AD22 -> 
D31: 17:10:00 | E31: BARRAGE | F31: B3 | H31: ='Poule 16 PS'!AD25 ->  | J31: ='Poule 16 PS'!AD28 ->  | L31: BARR. | M31: B4 | O31: ='Poule 16 PS'!AD31 ->  | Q31: ='Poule 16 PS'!AD34 -> 
D32: 17:45:00 | E32: FIN
E34: MATCH | G34: TER. | H34: E1 | I34: ./. | J34: E2 | K34: ARB | L34: MATCH | N34: TER. | O34: E1 | P34: ./. | Q34: E2 | R34: ARB | S34: 2*21, SD 15
C35: JOUR 2 | D35: =E9 -> 09:00:00 | E35: 1/4 M1 | F35: 25 | H35: ='SCORE 16 PRINC'!H36 ->  | J35: ='SCORE 16 PRINC'!I36 ->  | L35: 1/4 M2 | M35: 26 | O35: ='SCORE 16 PRINC'!H37 ->  | Q35: ='SCORE 16 PRINC'!I37 ->  | S35: 2*21, SD 15
D36: =D35+$E$10 -> 10:00:00 | E36: 1/4 M3 | F36: 27 | H36: ='SCORE 16 PRINC'!H38 ->  | J36: ='SCORE 16 PRINC'!I38 ->  | L36: 1/4 M4 | M36: 28 | O36: ='SCORE 16 PRINC'!H39 ->  | Q36: ='SCORE 16 PRINC'!I39 ->  | S36: 2*21, SD 15
D37: =D36+$E$10 -> 11:00:00 | E37: DEMI | F37: 29 | H37: ='SCORE 16 PRINC'!H40 ->  | J37: ='SCORE 16 PRINC'!I40 ->  | S37: 2*21, SD 15
D38: 12:00:00 | E38: DEMI | F38: 30 | H38: ='SCORE 16 PRINC'!H41 ->  | J38: ='SCORE 16 PRINC'!I41 ->  | S38: 2*21, SD 15
D39: 13:00:00
D40: 14:00:00 | E40: PETITE FINALE | F40: 31 | H40: ='SCORE 16 PRINC'!H42 ->  | J40: ='SCORE 16 PRINC'!I42 ->  | S40: 2*21, SD 15
D41: 15:00:00 | E41: FINALE | F41: 32 | H41: ='SCORE 16 PRINC'!H43 ->  | J41: ='SCORE 16 PRINC'!I43 ->  | S41: 2*21, SD 15
D42: 16:00:00 | E42: PODIUM

Sheet SCORE 16 PRINC (hidden)
A3: DEBUT J1 | B3: 0.375
A4: TEMPS | B4: 0.02083333333
A5: DEBUT J2 | B5: 0
C7: PHASE | D7: JOUR | E7: N° MATCH | F7: HEURE | G7: TER | H7: EQ1 | I7: EQ2 | J7: SCORE EQ1 | K7: SCORE EQ2 | L7: SET 1 EQ1 | M7: SET 1 EQ2 | N7: SET 2 EQ1 | O7: SET 2 EQ2 | P7: SET 3 EQ1 | Q7: SET 3 EQ2 | R7: POS 1 | S7: POS 2 | X7: PTS | Y7: S+ | Z7: S- | AA7: P+ | AB7: P- | AC7: CS | AD7: CP | AE7: CL.I | AF7: RG | AH7: CLA
C8: A | D8: 1 | E8: 1 | F8: =B3 -> 09:00:00 | G8: 1 | H8: ='Poule 16 PS'!C14 -> T / 1 | I8: ='Poule 16 PS'!C17 -> T / 16 | J8: =SUM(IF(L8>M8,1,0),IF(N8>O8,1,0),IF(P8>Q8,1,0)) -> 0 | K8: =SUM(IF(M8>L8,1,0),IF(O8>N8,1,0),IF(Q8>P8,1,0)) -> 0 | L8: ='Poule 16 PS'!M13 -> 0 | M8: ='Poule 16 PS'!O13 -> 0 | N8: ='Poule 16 PS'!Q13 -> 0 | O8: ='Poule 16 PS'!S13 -> 0 | P8: ='Poule 16 PS'!U13 -> 0 | Q8: ='Poule 16 PS'!W13 -> 0 | R8: =IF(J8=K8,"",IF(J8>K8,H8,I8)) ->  | S8: =IF(J8=K8,"",IF(J8<K8,H8,I8)) ->  | W8: ='Poule 16 PS'!C14 -> T / 1 | X8: =COUNTIF(PLACE1,W8)*2+COUNTIF(PLACE2,W8) -> 0 | Y8: =SUMIF(LISTEE1,W8,(SCEQ1))+SUMIF(LISTEE2,W8,(SCEQ2)) -> 0 | Z8: =SUMIF(LISTEE1,W8,(SCEQ2))+SUMIF(LISTEE2,W8,(SCEQ1)) -> 0 | AA8: =(SUMPRODUCT((LISTEE1=W8)*((S1EQ1)+(S2EQ1)+(S3EQ1))))+(SUMPRODUCT((LISTEE2=W8)*((S1EQ2)+(S2EQ2)+(S3EQ3)))) -> 0 | AB8: =(SUMPRODUCT((LISTEE2=W8)*((S1EQ1)+(S2EQ1)+(S3EQ1))))+(SUMPRODUCT((LISTEE1=W8)*((S1EQ2)+(S2EQ2)+(S3EQ3)))) -> 0 | AC8: =IFERROR(Y8/Z8,0) -> 0 | AD8: =IFERROR(AA8/AB8,0) -> 0 | AE8: =X8+AC8/100+AD8/100 -> 0 | AF8: =IF(X8=0,"",RANK(AE8,$AE$8:$AE$11)) ->  | AG8: 1 | AH8: =IF(X8=0,"",IF($AF$8=AG8,$W$8,IF($AF$9=AG8,$W$9,IF($AF$10=AG8,$W$10,IF($AF$11=AG8,$W$11))))) -> 
C9: B | D9: 1 | E9: 2 | F9: =B3 -> 09:00:00 | G9: 2 | H9: ='Poule 16 PS'!C21 -> T / 2 | I9: ='Poule 16 PS'!C24 -> T / 15 | J9: 0 | K9: 0 | L9: ='Poule 16 PS'!M20 -> 0 | M9: ='Poule 16 PS'!O20 -> 0 | N9: ='Poule 16 PS'!Q20 -> 0 | O9: ='Poule 16 PS'!S20 -> 0 | P9: ='Poule 16 PS'!U20 -> 0 | Q9: ='Poule 16 PS'!W20 -> 0 | R9: =IF(J9=K9,"",IF(J9>K9,H9,I9)) ->  | S9: =IF(J9=K9,"",IF(J9<K9,H9,I9)) ->  | W9: ='Poule 16 PS'!C15 -> T / 8 | X9: =COUNTIF(PLACE1,W9)*2+COUNTIF(PLACE2,W9) -> 0 | Y9: =SUMIF(LISTEE1,W9,(SCEQ1))+SUMIF(LISTEE2,W9,(SCEQ2)) -> 0 | Z9: =SUMIF(LISTEE1,W9,(SCEQ2))+SUMIF(LISTEE2,W9,(SCEQ1)) -> 0 | AA9: =(SUMPRODUCT((LISTEE1=W9)*((S1EQ1)+(S2EQ1)+(S3EQ1))))+(SUMPRODUCT((LISTEE2=W9)*((S1EQ2)+(S2EQ2)+(S3EQ3)))) -> 0 | AB9: =(SUMPRODUCT((LISTEE2=W9)*((S1EQ1)+(S2EQ1)+(S3EQ1))))+(SUMPRODUCT((LISTEE1=W9)*((S1EQ2)+(S2EQ2)+(S3EQ3)))) -> 0 | AC9: =IFERROR(Y9/Z9,0) -> 0 | AD9: =IFERROR(AA9/AB9,0) -> 0 | AE9: =X9+AC9/100+AD9/100 -> 0 | AF9: =IF(X9=0,"",RANK(AE9,$AE$8:$AE$11)) ->  | AG9: 2 | AH9: =IF(X9=0,"",IF($AF$8=AG9,$W$8,IF($AF$9=AG9,$W$9,IF($AF$10=AG9,$W$10,IF($AF$11=AG9,$W$11))))) -> 
C10: C | D10: 1 | E10: 3 | F10: =F8+$B$4 -> 09:30:00 | G10: 1 | H10: ='Poule 16 PS'!C28 -> T / 3 | I10: ='Poule 16 PS'!C31 -> T / 14 | J10: 0 | K10: 0 | L10: ='Poule 16 PS'!M27 -> 0 | M10: ='Poule 16 PS'!O27 -> 0 | N10: ='Poule 16 PS'!Q27 -> 0 | O10: ='Poule 16 PS'!S27 -> 0 | P10: ='Poule 16 PS'!U27 -> 0 | Q10: ='Poule 16 PS'!W27 -> 0 | R10: =IF(J10=K10,"",IF(J10>K10,H10,I10)) ->  | S10: =IF(J10=K10,"",IF(J10<K10,H10,I10)) ->  | W10: ='Poule 16 PS'!C16 -> T / 9 | X10: =COUNTIF(PLACE1,W10)*2+COUNTIF(PLACE2,W10) -> 0 | Y10: =SUMIF(LISTEE1,W10,(SCEQ1))+SUMIF(LISTEE2,W10,(SCEQ2)) -> 0 | Z10: =SUMIF(LISTEE1,W10,SCEQ2)+SUMIF(LISTEE2,W10,SCEQ1) -> 0 | AA10: =(SUMPRODUCT((LISTEE1=W10)*((S1EQ1)+(S2EQ1)+(S3EQ1))))+(SUMPRODUCT((LISTEE2=W10)*((S1EQ2)+(S2EQ2)+(S3EQ3)))) -> 0 | AB10: =(SUMPRODUCT((LISTEE2=W10)*((S1EQ1)+(S2EQ1)+(S3EQ1))))+(SUMPRODUCT((LISTEE1=W10)*((S1EQ2)+(S2EQ2)+(S3EQ3)))) -> 0 | AC10: 0 | AD10: 0 | AE10: 0 | AF10: =IF(X10=0,"",RANK(AE10,$AE$8:$AE$11)) ->  | AG10: 3 | AH10: =IF(X10=0,"",IF($AF$8=AG10,$W$8,IF($AF$9=AG10,$W$9,IF($AF$10=AG10,$W$10,IF($AF$11=AG10,$W$11))))) -> 
C11: D | D11: 1 | E11: 4 | F11: 09:30:00 | G11: 2 | H11: ='Poule 16 PS'!C35 -> T / 4 | I11: ='Poule 16 PS'!C38 -> T / 13 | J11: 0 | K11: 0 | L11: ='Poule 16 PS'!M34 -> 0 | M11: ='Poule 16 PS'!O34 -> 0 | N11: ='Poule 16 PS'!Q34 -> 0 | O11: ='Poule 16 PS'!S34 -> 0 | P11: ='Poule 16 PS'!U34 -> 0 | Q11: ='Poule 16 PS'!W34 -> 0 | W11: ='Poule 16 PS'!C17 -> T / 16 | X11: =COUNTIF(PLACE1,W11)*2+COUNTIF(PLACE2,W11) -> 0 | Y11: =SUMIF(LISTEE1,W11,(SCEQ1))+SUMIF(LISTEE2,W11,(SCEQ2)) -> 0 | Z11: =SUMIF(LISTEE1,W11,SCEQ2)+SUMIF(LISTEE2,W11,SCEQ1) -> 0 | AA11: =(SUMPRODUCT((LISTEE1=W11)*((S1EQ1)+(S2EQ1)+(S3EQ1))))+(SUMPRODUCT((LISTEE2=W11)*((S1EQ2)+(S2EQ2)+(S3EQ3)))) -> 0 | AB11: =(SUMPRODUCT((LISTEE2=W11)*((S1EQ1)+(S2EQ1)+(S3EQ1))))+(SUMPRODUCT((LISTEE1=W11)*((S1EQ2)+(S2EQ2)+(S3EQ3)))) -> 0 | AC11: 0 | AD11: 0 | AE11: 0 | AF11: =IF(X11=0,"",RANK(AE11,$AE$8:$AE$11)) ->  | AG11: 4 | AH11: =IF(X11=0,"",IF($AF$8=AG11,$W$8,IF($AF$9=AG11,$W$9,IF($AF$10=AG11,$W$10,IF($AF$11=AG11,$W$11))))) -> 
C12: A | D12: 1 | E12: 5 | F12: 10:00:00 | G12: 1 | H12: ='Poule 16 PS'!C15 -> T / 8 | I12: ='Poule 16 PS'!C16 -> T / 9 | J12: 0 | K12: 0 | L12: ='Poule 16 PS'!M14 -> 0 | M12: ='Poule 16 PS'!O14 -> 0 | N12: ='Poule 16 PS'!Q14 -> 0 | O12: ='Poule 16 PS'!S14 -> 0 | P12: ='Poule 16 PS'!U14 -> 0 | Q12: ='Poule 16 PS'!W14 -> 0
C13: B | D13: 1 | E13: 6 | F13: 10:00:00 | G13: 2 | H13: ='Poule 16 PS'!C22 -> T / 7 | I13: ='Poule 16 PS'!C23 -> T / 10 | J13: 0 | K13: 0 | L13: ='Poule 16 PS'!M21 -> 0 | M13: ='Poule 16 PS'!O21 -> 0 | N13: ='Poule 16 PS'!Q21 -> 0 | O13: ='Poule 16 PS'!S21 -> 0 | P13: ='Poule 16 PS'!U21 -> 0 | Q13: ='Poule 16 PS'!W21 -> 0 | W13: ='Poule 16 PS'!C21 -> T / 2 | X13: =COUNTIF(PLACE1,W13)*2+COUNTIF(PLACE2,W13) -> 0 | Y13: =SUMIF(LISTEE1,W13,(SCEQ1))+SUMIF(LISTEE2,W13,(SCEQ2)) -> 0 | Z13: =SUMIF(LISTEE1,W13,SCEQ2)+SUMIF(LISTEE2,W13,SCEQ1) -> 0 | AA13: =(SUMPRODUCT((LISTEE1=W13)*((S1EQ1)+(S2EQ1)+(S3EQ1))))+(SUMPRODUCT((LISTEE2=W13)*((S1EQ2)+(S2EQ2)+(S3EQ3)))) -> 0 | AB13: =(SUMPRODUCT((LISTEE2=W13)*((S1EQ1)+(S2EQ1)+(S3EQ1))))+(SUMPRODUCT((LISTEE1=W13)*((S1EQ2)+(S2EQ2)+(S3EQ3)))) -> 0 | AC13: 0 | AD13: 0 | AE13: 0 | AF13: =IF(X13=0,"",RANK(AE13,$AE$13:$AE$16)) ->  | AG13: 1 | AH13: =IF(X13=0,"",IF($AF$13=AG13,$W$13,IF($AF$14=AG13,$W$14,IF($AF$15=AG13,$W$15,IF($AF$16=AG13,$W$16))))) -> 
C14: C | D14: 1 | E14: 7 | F14: 10:30:00 | G14: 1 | H14: ='Poule 16 PS'!C29 -> T / 6 | I14: ='Poule 16 PS'!C30 -> T / 11 | J14: 0 | K14: 0 | L14: ='Poule 16 PS'!M28 -> 0 | M14: ='Poule 16 PS'!O28 -> 0 | N14: ='Poule 16 PS'!Q28 -> 0 | O14: ='Poule 16 PS'!S28 -> 0 | P14: ='Poule 16 PS'!U28 -> 0 | Q14: ='Poule 16 PS'!W28 -> 0 | R14: =IF(J14=K14,"",IF(J14>K14,H14,I14)) ->  | W14: ='Poule 16 PS'!C22 -> T / 7 | X14: =COUNTIF(PLACE1,W14)*2+COUNTIF(PLACE2,W14) -> 0 | Y14: =SUMIF(LISTEE1,W14,(SCEQ1))+SUMIF(LISTEE2,W14,(SCEQ2)) -> 0 | Z14: =SUMIF(LISTEE1,W14,SCEQ2)+SUMIF(LISTEE2,W14,SCEQ1) -> 0 | AA14: =(SUMPRODUCT((LISTEE1=W14)*((S1EQ1)+(S2EQ1)+(S3EQ1))))+(SUMPRODUCT((LISTEE2=W14)*((S1EQ2)+(S2EQ2)+(S3EQ3)))) -> 0 | AB14: =(SUMPRODUCT((LISTEE2=W14)*((S1EQ1)+(S2EQ1)+(S3EQ1))))+(SUMPRODUCT((LISTEE1=W14)*((S1EQ2)+(S2EQ2)+(S3EQ3)))) -> 0 | AC14: 0 | AD14: 0 | AE14: 0 | AF14: =IF(X14=0,"",RANK(AE14,$AE$13:$AE$16)) ->  | AG14: 2 | AH14: =IF(X14=0,"",IF($AF$13=AG14,$W$13,IF($AF$14=AG14,$W$14,IF($AF$15=AG14,$W$15,IF($AF$16=AG14,$W$16))))) -> 
C15: D | D15: 1 | E15: 8 | F15: 10:30:00 | G15: 2 | H15: ='Poule 16 PS'!C36 -> T / 5 | I15: ='Poule 16 PS'!C37 -> T /12 | J15: 0 | K15: 0 | L15: ='Poule 16 PS'!M35 -> 0 | M15: ='Poule 16 PS'!O35 -> 0 | N15: ='Poule 16 PS'!Q35 -> 0 | O15: ='Poule 16 PS'!S35 -> 0 | P15: ='Poule 16 PS'!U35 -> 0 | Q15: ='Poule 16 PS'!W35 -> 0 | W15: ='Poule 16 PS'!C23 -> T / 10 | X15: =COUNTIF(PLACE1,W15)*2+COUNTIF(PLACE2,W15) -> 0 | Y15: =SUMIF(LISTEE1,W15,(SCEQ1))+SUMIF(LISTEE2,W15,(SCEQ2)) -> 0 | Z15: =SUMIF(LISTEE1,W15,SCEQ2)+SUMIF(LISTEE2,W15,SCEQ1) -> 0 | AA15: =(SUMPRODUCT((LISTEE1=W15)*((S1EQ1)+(S2EQ1)+(S3EQ1))))+(SUMPRODUCT((LISTEE2=W15)*((S1EQ2)+(S2EQ2)+(S3EQ3)))) -> 0 | AB15: =(SUMPRODUCT((LISTEE2=W15)*((S1EQ1)+(S2EQ1)+(S3EQ1))))+(SUMPRODUCT((LISTEE1=W15)*((S1EQ2)+(S2EQ2)+(S3EQ3)))) -> 0 | AC15: 0 | AD15: 0 | AE15: 0 | AF15: =IF(X15=0,"",RANK(AE15,$AE$13:$AE$16)) ->  | AG15: 3 | AH15: =IF(X15=0,"",IF($AF$13=AG15,$W$13,IF($AF$14=AG15,$W$14,IF($AF$15=AG15,$W$15,IF($AF$16=AG15,$W$16))))) -> 
C16: A | D16: 1 | E16: 9 | F16: 11:00:00 | G16: 1 | H16: ='Poule QUALIF 16 P+B'!C15 -> T / 8 | I16: ='Poule QUALIF 16 P+B'!C17 -> T / 16 | J16: 0 | K16: 0 | L16: ='Poule 16 PS'!M15 -> 0 | M16: ='Poule 16 PS'!O15 -> 0 | N16: ='Poule 16 PS'!Q15 -> 0 | O16: ='Poule 16 PS'!S15 -> 0 | P16: ='Poule 16 PS'!U15 -> 0 | Q16: ='Poule 16 PS'!W15 -> 0 | W16: ='Poule 16 PS'!C24 -> T / 15 | X16: =COUNTIF(PLACE1,W16)*2+COUNTIF(PLACE2,W16) -> 0 | Y16: =SUMIF(LISTEE1,W16,(SCEQ1))+SUMIF(LISTEE2,W16,(SCEQ2)) -> 0 | Z16: =SUMIF(LISTEE1,W16,SCEQ2)+SUMIF(LISTEE2,W16,SCEQ1) -> 0 | AA16: =(SUMPRODUCT((LISTEE1=W16)*((S1EQ1)+(S2EQ1)+(S3EQ1))))+(SUMPRODUCT((LISTEE2=W16)*((S1EQ2)+(S2EQ2)+(S3EQ3)))) -> 0 | AB16: =(SUMPRODUCT((LISTEE2=W16)*((S1EQ1)+(S2EQ1)+(S3EQ1))))+(SUMPRODUCT((LISTEE1=W16)*((S1EQ2)+(S2EQ2)+(S3EQ3)))) -> 0 | AC16: 0 | AD16: 0 | AE16: 0 | AF16: =IF(X16=0,"",RANK(AE16,$AE$13:$AE$16)) ->  | AG16: 4 | AH16: =IF(X16=0,"",IF($AF$13=AG16,$W$13,IF($AF$14=AG16,$W$14,IF($AF$15=AG16,$W$15,IF($AF$16=AG16,$W$16))))) -> 
C17: B | D17: 1 | E17: 10 | F17: 11:00:00 | G17: 2 | H17: ='Poule 16 PS'!C22 -> T / 7 | I17: ='Poule 16 PS'!C24 -> T / 15 | J17: 0 | K17: 0 | L17: ='Poule 16 PS'!M22 -> 0 | M17: ='Poule 16 PS'!O22 -> 0 | N17: ='Poule 16 PS'!Q22 -> 0 | O17: ='Poule 16 PS'!S22 -> 0 | P17: ='Poule 16 PS'!U22 -> 0 | Q17: ='Poule 16 PS'!W22 -> 0
C18: C | D18: 1 | E18: 11 | F18: 11:30:00 | G18: 1 | H18: ='Poule 16 PS'!C29 -> T / 6 | I18: ='Poule 16 PS'!C31 -> T / 14 | J18: 0 | K18: 0 | L18: ='Poule 16 PS'!M29 -> 0 | M18: ='Poule 16 PS'!O29 -> 0 | N18: ='Poule 16 PS'!Q29 -> 0 | O18: ='Poule 16 PS'!S29 -> 0 | P18: ='Poule 16 PS'!U29 -> 0 | Q18: ='Poule 16 PS'!W29 -> 0 | W18: ='Poule 16 PS'!C28 -> T / 3 | X18: =COUNTIF(PLACE1,W18)*2+COUNTIF(PLACE2,W18) -> 0 | Y18: =SUMIF(LISTEE1,W18,(SCEQ1))+SUMIF(LISTEE2,W18,(SCEQ2)) -> 0 | Z18: =SUMIF(LISTEE1,W18,SCEQ2)+SUMIF(LISTEE2,W18,SCEQ1) -> 0 | AA18: =(SUMPRODUCT((LISTEE1=W18)*((S1EQ1)+(S2EQ1)+(S3EQ1))))+(SUMPRODUCT((LISTEE2=W18)*((S1EQ2)+(S2EQ2)+(S3EQ3)))) -> 0 | AB18: =(SUMPRODUCT((LISTEE2=W18)*((S1EQ1)+(S2EQ1)+(S3EQ1))))+(SUMPRODUCT((LISTEE1=W18)*((S1EQ2)+(S2EQ2)+(S3EQ3)))) -> 0 | AC18: =IFERROR(Y18/Z18,0) -> 0 | AD18: 0 | AE18: =X18+AC18/100+AD18/100 -> 0 | AF18: =IF(X18=0,"",RANK(AE18,$AE$18:$AE$21)) ->  | AG18: 1 | AH18: =IF(X18=0,"",IF($AF$18=AG18,$W$18,IF($AF$19=AG18,$W$19,IF($AF$20=AG18,$W$20,IF($AF$21=AG18,$W$21))))) -> 
C19: D | D19: 1 | E19: 12 | F19: 11:30:00 | G19: 2 | H19: ='Poule 16 PS'!C36 -> T / 5 | I19: ='Poule 16 PS'!C38 -> T / 13 | J19: 0 | K19: 0 | L19: ='Poule 16 PS'!M36 -> 0 | M19: ='Poule 16 PS'!O36 -> 0 | N19: ='Poule 16 PS'!Q36 -> 0 | O19: ='Poule 16 PS'!S36 -> 0 | P19: ='Poule 16 PS'!U36 -> 0 | Q19: ='Poule 16 PS'!W36 -> 0 | W19: ='Poule 16 PS'!C29 -> T / 6 | X19: =COUNTIF(PLACE1,W19)*2+COUNTIF(PLACE2,W19) -> 0 | Y19: =SUMIF(LISTEE1,W19,(SCEQ1))+SUMIF(LISTEE2,W19,(SCEQ2)) -> 0 | Z19: =SUMIF(LISTEE1,W19,SCEQ2)+SUMIF(LISTEE2,W19,SCEQ1) -> 0 | AA19: =(SUMPRODUCT((LISTEE1=W19)*((S1EQ1)+(S2EQ1)+(S3EQ1))))+(SUMPRODUCT((LISTEE2=W19)*((S1EQ2)+(S2EQ2)+(S3EQ3)))) -> 0 | AB19: =(SUMPRODUCT((LISTEE2=W19)*((S1EQ1)+(S2EQ1)+(S3EQ1))))+(SUMPRODUCT((LISTEE1=W19)*((S1EQ2)+(S2EQ2)+(S3EQ3)))) -> 0 | AC19: 0 | AD19: 0 | AE19: =X19+AC19/100+AD19/100 -> 0 | AF19: =IF(X19=0,"",RANK(AE19,$AE$18:$AE$21)) ->  | AG19: 2 | AH19: =IF(X19=0,"",IF($AF$18=AG19,$W$18,IF($AF$19=AG19,$W$19,IF($AF$20=AG19,$W$20,IF($AF$21=AG19,$W$21))))) -> 
C20: A | D20: 1 | E20: 13 | F20: 12:00:00 | G20: 1 | H20: ='Poule 16 PS'!C14 -> T / 1 | I20: ='Poule 16 PS'!C16 -> T / 9 | J20: 0 | K20: 0 | L20: ='Poule 16 PS'!M16 -> 0 | M20: ='Poule 16 PS'!O16 -> 0 | N20: ='Poule 16 PS'!Q16 -> 0 | O20: ='Poule 16 PS'!S16 -> 0 | P20: ='Poule 16 PS'!U16 -> 0 | Q20: ='Poule 16 PS'!W16 -> 0 | R20: =IF(J20=K20,"",IF(J20>K20,H20,I20)) ->  | S20: =IF(J20=K20,"",IF(J20<K20,H20,I20)) ->  | W20: ='Poule 16 PS'!C30 -> T / 11 | X20: =COUNTIF(PLACE1,W20)*2+COUNTIF(PLACE2,W20) -> 0 | Y20: =SUMIF(LISTEE1,W20,(SCEQ1))+SUMIF(LISTEE2,W20,(SCEQ2)) -> 0 | Z20: =SUMIF(LISTEE1,W20,SCEQ2)+SUMIF(LISTEE2,W20,SCEQ1) -> 0 | AA20: =(SUMPRODUCT((LISTEE1=W20)*((S1EQ1)+(S2EQ1)+(S3EQ1))))+(SUMPRODUCT((LISTEE2=W20)*((S1EQ2)+(S2EQ2)+(S3EQ3)))) -> 0 | AB20: =(SUMPRODUCT((LISTEE2=W20)*((S1EQ1)+(S2EQ1)+(S3EQ1))))+(SUMPRODUCT((LISTEE1=W20)*((S1EQ2)+(S2EQ2)+(S3EQ3)))) -> 0 | AC20: 0 | AD20: 0 | AE20: 0 | AG20: 3 | AH20: =IF(X20=0,"",IF($AF$18=AG20,$W$18,IF($AF$19=AG20,$W$19,IF($AF$20=AG20,$W$20,IF($AF$21=AG20,$W$21))))) -> 
C21: B | D21: 1 | E21: 14 | F21: 12:00:00 | G21: 2 | H21: ='Poule 16 PS'!C21 -> T / 2 | I21: ='Poule 16 PS'!C23 -> T / 10 | J21: 0 | K21: 0 | L21: ='Poule 16 PS'!M23 -> 0 | M21: ='Poule 16 PS'!O23 -> 0 | N21: ='Poule 16 PS'!Q23 -> 0 | O21: ='Poule 16 PS'!S23 -> 0 | P21: ='Poule 16 PS'!U23 -> 0 | Q21: ='Poule 16 PS'!W23 -> 0 | W21: ='Poule 16 PS'!C31 -> T / 14 | X21: =COUNTIF(PLACE1,W21)*2+COUNTIF(PLACE2,W21) -> 0 | Y21: =SUMIF(LISTEE1,W21,(SCEQ1))+SUMIF(LISTEE2,W21,(SCEQ2)) -> 0 | Z21: =SUMIF(LISTEE1,W21,SCEQ2)+SUMIF(LISTEE2,W21,SCEQ1) -> 0 | AA21: =(SUMPRODUCT((LISTEE1=W21)*((S1EQ1)+(S2EQ1)+(S3EQ1))))+(SUMPRODUCT((LISTEE2=W21)*((S1EQ2)+(S2EQ2)+(S3EQ3)))) -> 0 | AB21: =(SUMPRODUCT((LISTEE2=W21)*((S1EQ1)+(S2EQ1)+(S3EQ1))))+(SUMPRODUCT((LISTEE1=W21)*((S1EQ2)+(S2EQ2)+(S3EQ3)))) -> 0 | AC21: 0 | AD21: 0 | AE21: =X21+AC21/100+AD21/100 -> 0 | AG21: 4 | AH21: =IF(X21=0,"",IF($AF$18=AG21,$W$18,IF($AF$19=AG21,$W$19,IF($AF$20=AG21,$W$20,IF($AF$21=AG21,$W$21))))) -> 
C22: C | D22: 1 | E22: 15 | F22: 12:30:00 | G22: 1 | H22: ='Poule 16 PS'!C28 -> T / 3 | I22: ='Poule 16 PS'!C30 -> T / 11 | J22: 0 | K22: 0 | L22: ='Poule 16 PS'!M30 -> 0 | M22: ='Poule 16 PS'!O30 -> 0 | N22: ='Poule 16 PS'!Q30 -> 0 | O22: ='Poule 16 PS'!S30 -> 0 | P22: ='Poule 16 PS'!U30 -> 0 | Q22: ='Poule 16 PS'!W30 -> 0
C23: D | D23: 1 | E23: 16 | F23: 12:30:00 | G23: 2 | H23: ='Poule 16 PS'!C35 -> T / 4 | I23: ='Poule 16 PS'!C37 -> T /12 | J23: 0 | K23: 0 | L23: ='Poule 16 PS'!M37 -> 0 | M23: ='Poule 16 PS'!O37 -> 0 | N23: ='Poule 16 PS'!Q37 -> 0 | O23: ='Poule 16 PS'!S37 -> 0 | P23: ='Poule 16 PS'!U37 -> 0 | Q23: ='Poule 16 PS'!W37 -> 0 | W23: ='Poule 16 PS'!C35 -> T / 4 | X23: =COUNTIF(PLACE1,W23)*2+COUNTIF(PLACE2,W23) -> 0 | Y23: =SUMIF(LISTEE1,W23,(SCEQ1))+SUMIF(LISTEE2,W23,(SCEQ2)) -> 0 | Z23: =SUMIF(LISTEE1,W23,SCEQ2)+SUMIF(LISTEE2,W23,SCEQ1) -> 0 | AA23: =(SUMPRODUCT((LISTEE1=W23)*((S1EQ1)+(S2EQ1)+(S3EQ1))))+(SUMPRODUCT((LISTEE2=W23)*((S1EQ2)+(S2EQ2)+(S3EQ3)))) -> 0 | AB23: =(SUMPRODUCT((LISTEE2=W23)*((S1EQ1)+(S2EQ1)+(S3EQ1))))+(SUMPRODUCT((LISTEE1=W23)*((S1EQ2)+(S2EQ2)+(S3EQ3)))) -> 0 | AC23: 0 | AD23: 0 | AE23: 0 | AF23: =IF(X23=0,"",RANK(AE23,$AE$23:$AE$26)) ->  | AG23: 1 | AH23: =IF(X23=0,"",IF($AF$23=AG23,$W$23,IF($AF$24=AG23,$W$24,IF($AF$25=AG23,$W$25,IF($AF$26=AG23,$W$26))))) -> 
C24: A | D24: 1 | E24: 17 | F24: 13:00:00 | G24: 1 | H24: ='Poule 16 PS'!C16 -> T / 9 | I24: ='Poule 16 PS'!C17 -> T / 16 | J24: 0 | K24: 0 | L24: ='Poule 16 PS'!M17 -> 0 | M24: ='Poule 16 PS'!O17 -> 0 | N24: ='Poule 16 PS'!Q17 -> 0 | O24: ='Poule 16 PS'!S17 -> 0 | P24: ='Poule 16 PS'!U17 -> 0 | Q24: ='Poule 16 PS'!W17 -> 0 | R24: =IF(J24=K24,"",IF(J24>K24,H24,I24)) ->  | S24: =IF(J24=K24,"",IF(J24<K24,H24,I24)) ->  | W24: ='Poule 16 PS'!C36 -> T / 5 | X24: =COUNTIF(PLACE1,W24)*2+COUNTIF(PLACE2,W24) -> 0 | Y24: =SUMIF(LISTEE1,W24,(SCEQ1))+SUMIF(LISTEE2,W24,(SCEQ2)) -> 0 | Z24: =SUMIF(LISTEE1,W24,SCEQ2)+SUMIF(LISTEE2,W24,SCEQ1) -> 0 | AA24: =(SUMPRODUCT((LISTEE1=W24)*((S1EQ1)+(S2EQ1)+(S3EQ1))))+(SUMPRODUCT((LISTEE2=W24)*((S1EQ2)+(S2EQ2)+(S3EQ3)))) -> 0 | AB24: =(SUMPRODUCT((LISTEE2=W24)*((S1EQ1)+(S2EQ1)+(S3EQ1))))+(SUMPRODUCT((LISTEE1=W24)*((S1EQ2)+(S2EQ2)+(S3EQ3)))) -> 0 | AC24: 0 | AD24: 0 | AE24: 0 | AF24: =IF(X24=0,"",RANK(AE24,$AE$23:$AE$26)) ->  | AG24: 2 | AH24: =IF(X24=0,"",IF($AF$23=AG24,$W$23,IF($AF$24=AG24,$W$24,IF($AF$25=AG24,$W$25,IF($AF$26=AG24,$W$26))))) -> 
C25: B | D25: 1 | E25: 18 | F25: 13:00:00 | G25: 2 | H25: ='Poule 16 PS'!C23 -> T / 10 | I25: ='Poule 16 PS'!C24 -> T / 15 | J25: 0 | K25: 0 | L25: ='Poule 16 PS'!M24 -> 0 | M25: ='Poule 16 PS'!O24 -> 0 | N25: ='Poule 16 PS'!Q24 -> 0 | O25: ='Poule 16 PS'!S24 -> 0 | P25: ='Poule 16 PS'!U24 -> 0 | Q25: ='Poule 16 PS'!W24 -> 0 | W25: ='Poule 16 PS'!C37 -> T /12 | X25: =COUNTIF(PLACE1,W25)*2+COUNTIF(PLACE2,W25) -> 0 | Y25: =SUMIF(LISTEE1,W25,(SCEQ1))+SUMIF(LISTEE2,W25,(SCEQ2)) -> 0 | Z25: =SUMIF(LISTEE1,W25,SCEQ2)+SUMIF(LISTEE2,W25,SCEQ1) -> 0 | AA25: =(SUMPRODUCT((LISTEE1=W25)*((S1EQ1)+(S2EQ1)+(S3EQ1))))+(SUMPRODUCT((LISTEE2=W25)*((S1EQ2)+(S2EQ2)+(S3EQ3)))) -> 0 | AB25: =(SUMPRODUCT((LISTEE2=W25)*((S1EQ1)+(S2EQ1)+(S3EQ1))))+(SUMPRODUCT((LISTEE1=W25)*((S1EQ2)+(S2EQ2)+(S3EQ3)))) -> 0 | AC25: 0 | AD25: 0 | AE25: 0 | AG25: 3
C26: C | D26: 1 | E26: 19 | F26: 13:30:00 | G26: 1 | H26: ='Poule 16 PS'!C30 -> T / 11 | I26: ='Poule 16 PS'!C31 -> T / 14 | J26: 0 | K26: 0 | L26: ='Poule 16 PS'!M31 -> 0 | M26: ='Poule 16 PS'!O31 -> 0 | N26: ='Poule 16 PS'!Q31 -> 0 | O26: ='Poule 16 PS'!S31 -> 0 | P26: ='Poule 16 PS'!U31 -> 0 | Q26: ='Poule 16 PS'!W31 -> 0 | W26: ='Poule 16 PS'!C38 -> T / 13 | X26: =COUNTIF(PLACE1,W26)*2+COUNTIF(PLACE2,W26) -> 0 | Y26: =SUMIF(LISTEE1,W26,(SCEQ1))+SUMIF(LISTEE2,W26,(SCEQ2)) -> 0 | Z26: =SUMIF(LISTEE1,W26,SCEQ2)+SUMIF(LISTEE2,W26,SCEQ1) -> 0 | AA26: =(SUMPRODUCT((LISTEE1=W26)*((S1EQ1)+(S2EQ1)+(S3EQ1))))+(SUMPRODUCT((LISTEE2=W26)*((S1EQ2)+(S2EQ2)+(S3EQ3)))) -> 0 | AB26: =(SUMPRODUCT((LISTEE2=W26)*((S1EQ1)+(S2EQ1)+(S3EQ1))))+(SUMPRODUCT((LISTEE1=W26)*((S1EQ2)+(S2EQ2)+(S3EQ3)))) -> 0 | AC26: 0 | AD26: 0 | AE26: 0 | AG26: 4 | AH26: =IF(X26=0,"",IF($AF$23=AG26,$W$23,IF($AF$24=AG26,$W$24,IF($AF$25=AG26,$W$25,IF($AF$26=AG26,$W$26))))) -> 
C27: D | D27: 1 | E27: 20 | F27: 13:30:00 | G27: 2 | H27: ='Poule 16 PS'!C37 -> T /12 | I27: ='Poule 16 PS'!C38 -> T / 13 | J27: 0 | K27: 0 | L27: ='Poule 16 PS'!M38 -> 0 | M27: ='Poule 16 PS'!O38 -> 0 | N27: ='Poule 16 PS'!Q38 -> 0 | O27: ='Poule 16 PS'!S38 -> 0 | P27: ='Poule 16 PS'!U38 -> 0 | Q27: ='Poule 16 PS'!W38 -> 0
C28: A | D28: 1 | E28: 21 | F28: 14:00:00 | G28: 1 | H28: ='Poule 16 PS'!C14 -> T / 1 | I28: ='Poule 16 PS'!C15 -> T / 8 | J28: 0 | K28: 0 | L28: ='Poule 16 PS'!M18 -> 0 | M28: ='Poule 16 PS'!O18 -> 0 | N28: ='Poule 16 PS'!Q18 -> 0 | O28: ='Poule 16 PS'!S18 -> 0 | P28: ='Poule 16 PS'!U18 -> 0 | Q28: ='Poule 16 PS'!W18 -> 0 | R28: =IF(J28=K28,"",IF(J28>K28,H28,I28)) ->  | S28: =IF(J28=K28,"",IF(J28<K28,H28,I28)) -> 
C29: B | D29: 1 | E29: 22 | F29: 14:00:00 | G29: 2 | H29: ='Poule 16 PS'!C21 -> T / 2 | I29: ='Poule 16 PS'!C22 -> T / 7 | J29: 0 | K29: 0 | L29: ='Poule 16 PS'!M25 -> 0 | M29: ='Poule 16 PS'!O25 -> 0 | N29: ='Poule 16 PS'!Q25 -> 0 | O29: ='Poule 16 PS'!S25 -> 0 | P29: ='Poule 16 PS'!U25 -> 0 | Q29: ='Poule 16 PS'!W25 -> 0
C30: C | D30: 1 | E30: 23 | F30: 14:30:00 | G30: 1 | H30: ='Poule 16 PS'!C28 -> T / 3 | I30: ='Poule 16 PS'!C29 -> T / 6 | J30: 0 | K30: 0 | L30: ='Poule 16 PS'!M32 -> 0 | M30: ='Poule 16 PS'!O32 -> 0 | N30: ='Poule 16 PS'!Q32 -> 0 | O30: ='Poule 16 PS'!S32 -> 0 | P30: ='Poule 16 PS'!U32 -> 0 | Q30: ='Poule 16 PS'!W32 -> 0
C31: D | D31: 1 | E31: 24 | F31: 14:30:00 | G31: 2 | H31: ='Poule 16 PS'!C35 -> T / 4 | I31: ='Poule 16 PS'!C36 -> T / 5 | J31: 0 | K31: 0 | L31: ='Poule 16 PS'!M39 -> 0 | M31: ='Poule 16 PS'!O39 -> 0 | N31: ='Poule 16 PS'!Q39 -> 0 | O31: ='Poule 16 PS'!S39 -> 0 | P31: ='Poule 16 PS'!U39 -> 0 | Q31: ='Poule 16 PS'!W39 -> 0 | R31: =IF(J31=K31,"",IF(J31>K31,H31,I31)) -> 
C32: BARR | D32: 1 | E32: 25 | F32: 15:00:00 | G32: 1 | H32: ='Poule 16 PS'!AD13 ->  | I32: ='Poule 16 PS'!AD16 ->  | J32: =SUM(IF(L32>M32,1,0),IF(N32>O32,1,0),IF(P32>Q32,1,0)) -> 0 | K32: 0 | L32: ='Poule 16 PS'!AG14 -> 0 | M32: ='Poule 16 PS'!AI14 -> 0 | N32: ='Poule 16 PS'!AK14 -> 0 | O32: ='Poule 16 PS'!AM14 -> 0 | P32: ='Poule 16 PS'!AO14 -> 0 | Q32: ='Poule 16 PS'!AQ14 -> 0 | R32: =IF(J32=K32,"",IF(J32>K32,H32,I32)) ->  | S32: =IF(J32=K32,"",IF(J32<K32,H32,I32)) -> 
C33: BARR | D33: 1 | E33: 26 | F33: 15:00:00 | G33: 2 | H33: ='Poule 16 PS'!AD19 ->  | I33: ='Poule 16 PS'!AD22 ->  | J33: =SUM(IF(L33>M33,1,0),IF(N33>O33,1,0),IF(P33>Q33,1,0)) -> 0 | K33: =SUM(IF(M33>L33,1,0),IF(O33>N33,1,0),IF(Q33>P33,1,0)) -> 0 | L33: ='Poule 16 PS'!AG20 -> 0 | M33: ='Poule 16 PS'!AI20 -> 0 | N33: ='Poule 16 PS'!AK20 -> 0 | O33: ='Poule 16 PS'!AM20 -> 0 | P33: ='Poule 16 PS'!AO20 -> 0 | Q33: ='Poule 16 PS'!AQ20 -> 0 | R33: =IF(J33=K33,"",IF(J33>K33,H33,I33)) -> 
C34: BARR | D34: 1 | E34: 27 | F34: 15:30:00 | G34: 1 | H34: ='Poule 16 PS'!AD25 ->  | I34: ='Poule 16 PS'!AD28 ->  | J34: 0 | K34: 0 | L34: ='Poule 16 PS'!AG26 -> 0 | M34: ='Poule 16 PS'!AI26 -> 0 | N34: ='Poule 16 PS'!AK26 -> 0 | O34: ='Poule 16 PS'!AM26 -> 0 | P34: ='Poule 16 PS'!AO26 -> 0 | Q34: ='Poule 16 PS'!AQ26 -> 0
C35: BARR | D35: 1 | E35: 28 | F35: 15:30:00 | G35: 2 | H35: ='Poule 16 PS'!AD31 ->  | I35: ='Poule 16 PS'!AD34 ->  | J35: =SUM(IF(L35>M35,1,0),IF(N35>O35,1,0),IF(P35>Q35,1,0)) -> 0 | K35: 0 | L35: ='Poule 16 PS'!AG32 -> 0 | M35: ='Poule 16 PS'!AI32 -> 0 | N35: ='Poule 16 PS'!AK32 -> 0 | O35: ='Poule 16 PS'!AM32 -> 0 | P35: ='Poule 16 PS'!AO32 -> 0 | Q35: ='Poule 16 PS'!AQ32 -> 0
C36: 1/4 | D36: 1 | E36: 29 | F36: 16:00:00 | G36: 1 | H36: =AH8 ->  | I36: =R32 ->  | J36: =SUM(IF(L36>M36,1,0),IF(N36>O36,1,0),IF(P36>Q36,1,0)) -> 0 | K36: =SUM(IF(M36>L36,1,0),IF(O36>N36,1,0),IF(Q36>P36,1,0)) -> 0 | L36: ='Poule 16 PS'!M45 -> 0 | M36: ='Poule 16 PS'!O45 -> 0 | N36: ='Poule 16 PS'!Q45 -> 0 | O36: ='Poule 16 PS'!S45 -> 0 | P36: ='Poule 16 PS'!U45 -> 0 | Q36: ='Poule 16 PS'!W45 -> 0
C37: 1/4 | D37: 1 | E37: 30 | F37: 16:00:00 | G37: 2 | H37: =R33 ->  | I37: =AH23 ->  | J37: 0 | K37: 0 | L37: ='Poule 16 PS'!M51 -> 0 | M37: ='Poule 16 PS'!O51 -> 0 | N37: ='Poule 16 PS'!Q51 -> 0 | O37: ='Poule 16 PS'!S51 -> 0 | P37: ='Poule 16 PS'!U51 -> 0 | Q37: ='Poule 16 PS'!W51 -> 0
C38: 1/4 | D38: 1 | E38: 31 | F38: 16:30:00 | G38: 1 | H38: =AH18 ->  | I38: =R34 ->  | J38: 0 | K38: 0 | L38: ='Poule 16 PS'!M57 -> 0 | M38: ='Poule 16 PS'!O57 -> 0 | N38: ='Poule 16 PS'!Q57 -> 0 | O38: ='Poule 16 PS'!S57 -> 0 | P38: ='Poule 16 PS'!U57 -> 0 | Q38: ='Poule 16 PS'!W57 -> 0
C39: 1/4 | D39: 1 | E39: 32 | F39: 16:30:00 | G39: 2 | H39: =R35 ->  | I39: =AH13 ->  | J39: 0 | K39: 0 | L39: ='Poule 16 PS'!M63 -> 0 | M39: ='Poule 16 PS'!O63 -> 0 | N39: ='Poule 16 PS'!Q63 -> 0 | O39: ='Poule 16 PS'!S63 -> 0 | P39: ='Poule 16 PS'!U63 -> 0 | Q39: ='Poule 16 PS'!W63 -> 0
C40: 1/2 | D40: 1 | E40: 33 | F40: 17:00:00 | H40: =R36 ->  | I40: =R37 ->  | J40: =SUM(IF(L40>M40,1,0),IF(N40>O40,1,0),IF(P40>Q40,1,0)) -> 0 | K40: =SUM(IF(M40>L40,1,0),IF(O40>N40,1,0),IF(Q40>P40,1,0)) -> 0 | L40: ='Poule 16 PS'!AI45 -> 0 | M40: ='Poule 16 PS'!AK45 -> 0 | N40: ='Poule 16 PS'!AM45 -> 0 | O40: ='Poule 16 PS'!AO45 -> 0 | P40: ='Poule 16 PS'!AQ45 -> 0 | Q40: ='Poule 16 PS'!AS45 -> 0
C41: 1/2 | D41: 1 | E41: 34 | F41: =F40+$B$4 -> 17:30:00 | H41: =R39 ->  | I41: =R38 ->  | J41: =SUM(IF(L41>M41,1,0),IF(N41>O41,1,0),IF(P41>Q41,1,0)) -> 0 | K41: =SUM(IF(M41>L41,1,0),IF(O41>N41,1,0),IF(Q41>P41,1,0)) -> 0 | L41: ='Poule 16 PS'!AI51 -> 0 | M41: ='Poule 16 PS'!AK51 -> 0 | N41: ='Poule 16 PS'!AM51 -> 0 | O41: ='Poule 16 PS'!AO51 -> 0 | P41: ='Poule 16 PS'!AQ51 -> 0 | Q41: ='Poule 16 PS'!AS51 -> 0
C42: 3-4 | D42: 1 | E42: 35 | F42: =F41+$B$4 -> 18:00:00 | H42: =S40 ->  | I42: =S41 ->  | J42: 0 | K42: 0 | L42: ='Poule 16 PS'!AI59 -> 0 | M42: ='Poule 16 PS'!AK59 -> 0 | N42: ='Poule 16 PS'!AM59 -> 0 | O42: ='Poule 16 PS'!AO59 -> 0 | P42: ='Poule 16 PS'!AQ59 -> 0 | Q42: ='Poule 16 PS'!AS59 -> 0
C43: F | D43: 1 | E43: 36 | F43: =F42+$B$4 -> 18:30:00 | H43: =R40 ->  | I43: =R41 ->  | J43: =SUM(IF(L43>M43,1,0),IF(N43>O43,1,0),IF(P43>Q43,1,0)) -> 0 | K43: =SUM(IF(M43>L43,1,0),IF(O43>N43,1,0),IF(Q43>P43,1,0)) -> 0 | L43: ='Poule 16 PS'!BA48 -> 0 | M43: ='Poule 16 PS'!BC48 -> 0 | N43: ='Poule 16 PS'!BE48 -> 0 | O43: ='Poule 16 PS'!BG48 -> 0 | P43: ='Poule 16 PS'!BI48 -> 0 | Q43: ='Poule 16 PS'!BK48 -> 0

Sheet Poule 16 PS
G1: =IF('LISTE ENGAGES'!Q3="",'LISTE ENGAGES'!P3,'LISTE ENGAGES'!Q3) -> APPELATION TOURNOI | AA1: ='LISTE ENGAGES'!H1:H3 -> ORGANISATEUR
G5: =IF('LISTE ENGAGES'!Q4="",'LISTE ENGAGES'!P4,'LISTE ENGAGES'!Q4) -> LIEU | R5: ='LISTE ENGAGES'!F4 -> DATE | X5: ='LISTE ENGAGES'!H4 -> GENRE
G6: =IF('LISTE ENGAGES'!Q5<>"",'LISTE ENGAGES'!Q5,'LISTE ENGAGES'!P5) -> TYPE
G7: TABLEAU PRINCIPAL
C11: POULES | M11: RESULTATS | AA11: CLASS. POUL | AD11: BARRAGES | AX11: CLASSEMENT FINAL
D12: ORDRE | G12: H | H12: T | I12: A | K12: SCORE | M12: Set 1 | Q12: Set 2 | U12: Set 3 | Z12: POULE
D13: 1-4 | E13: =CONCATENATE(C14," - ",C17) -> T / 1 - T / 16 | F13: (1) | G13: ='PLANNING PS 16'!D17 -> 09:00:00 | K13: =CONCATENATE("(",'SCORE 16 PRINC'!J8,"/",'SCORE 16 PRINC'!K8,")") -> (0/0) | L13: : | N13: / | P13: ; | R13: / | T13: ; | V13: / | AD13: =AA23 ->  | AE13: SCORE | AG13: Set 1 | AK13: Set 2 | AO13: Set 3 | AW13: 1 - | AX13: ='SCORE 16 PRINC'!R43 -> 
B14: T1 | C14: =CONCATENATE('EMARG M Tableau PRIN'!C9," / ",'EMARG M Tableau PRIN'!G9) -> T / 1 | D14: 2-3 | E14: =CONCATENATE(C15," - ",C16) -> T / 8 - T / 9 | F14: (5) | K14: =CONCATENATE("(",'SCORE 16 PRINC'!J12,"/",'SCORE 16 PRINC'!K12,")") -> (0/0) | L14: : | N14: / | P14: ; | R14: / | T14: ; | V14: / | Z14: 1 | AA14: ='SCORE 16 PRINC'!AH8 ->  | AD14: 3B | AE14: =CONCATENATE("(",'SCORE 16 PRINC'!J32,"/",'SCORE 16 PRINC'!K32,")") -> (0/0) | AH14: / | AL14: / | AP14: / | AW14: 2 - | AX14: ='SCORE 16 PRINC'!S43 -> 
A15: A | B15: T8 | C15: =CONCATENATE('EMARG M Tableau PRIN'!C16," / ",'EMARG M Tableau PRIN'!G16) -> T / 8 | D15: 2-4 | E15: =CONCATENATE(C15," - ",C17) -> T / 8 - T / 16 | F15: (9) | K15: =CONCATENATE("(",'SCORE 16 PRINC'!J16,"/",'SCORE 16 PRINC'!K16,")") -> (0/0) | L15: : | N15: / | P15: ; | R15: / | T15: ; | V15: / | Z15: 2 | AA15: ='SCORE 16 PRINC'!AH9 ->  | AC15: (B1) | AD15: 2C | AG15: HEURE | AK15: TERR | AO15: ARB. | AW15: 3 - | AX15: ='SCORE 16 PRINC'!R42 -> 
B16: T9 | C16: =CONCATENATE('EMARG M Tableau PRIN'!C17," / ",'EMARG M Tableau PRIN'!G17) -> T / 9 | D16: 1-3 | E16: =CONCATENATE(C14," - ",C16) -> T / 1 - T / 9 | F16: (13) | K16: =CONCATENATE("(",'SCORE 16 PRINC'!J20,"/",'SCORE 16 PRINC'!K20,")") -> (0/0) | L16: : | N16: / | P16: ; | R16: / | T16: ; | V16: / | Z16: 3 | AA16: ='SCORE 16 PRINC'!AH10 ->  | AD16: =AA29 ->  | AW16: 4 - | AX16: ='SCORE 16 PRINC'!S42 -> 
B17: T16 | C17: =CONCATENATE('EMARG M Tableau PRIN'!C24," / ",'EMARG M Tableau PRIN'!G24) -> T / 16 | D17: 3-4 | E17: =CONCATENATE(C16," - ",C17) -> T / 9 - T / 16 | F17: (17) | K17: =CONCATENATE("(",'SCORE 16 PRINC'!J24,"/",'SCORE 16 PRINC'!K24,")") -> (0/0) | L17: : | N17: / | P17: ; | R17: / | T17: ; | V17: / | Z17: 4 | AA17: ='SCORE 16 PRINC'!AH11 ->  | AW17: 5 - | AX17: ='SCORE 16 PRINC'!S36 -> 
D18: 1-2 | E18: =CONCATENATE(C14," - ",C15) -> T / 1 - T / 8 | F18: (21) | K18: =CONCATENATE("(",'SCORE 16 PRINC'!J28,"/",'SCORE 16 PRINC'!K28,")") -> (0/0) | L18: : | N18: / | P18: ; | R18: / | T18: ; | V18: / | AW18: 6 - | AX18: ='SCORE 16 PRINC'!S37 -> 
AD19: =AA30 ->  | AE19: SCORE | AG19: Set 1 | AK19: Set 2 | AO19: Set 3 | AW19: 7 - | AX19: ='SCORE 16 PRINC'!S38 -> 
D20: 1-4 | E20: =CONCATENATE(C21," - ",C24) -> T / 2 - T / 15 | F20: (3) | K20: =CONCATENATE("(",'SCORE 16 PRINC'!J9,"/",'SCORE 16 PRINC'!K9,")") -> (0/0) | L20: : | N20: / | P20: ; | R20: / | T20: ; | V20: / | AD20: 3C | AE20: =CONCATENATE("(",'SCORE 16 PRINC'!J33,"/",'SCORE 16 PRINC'!K33,")") -> (0/0) | AH20: / | AL20: / | AP20: / | AW20: 8 - | AX20: ='SCORE 16 PRINC'!S39 -> 
B21: T2 | C21: =CONCATENATE('EMARG M Tableau PRIN'!C10," / ",'EMARG M Tableau PRIN'!G10) -> T / 2 | D21: 2-3 | E21: =CONCATENATE(C22," - ",C23) -> T / 7 - T / 10 | F21: (7) | K21: =CONCATENATE("(",'SCORE 16 PRINC'!J13,"/",'SCORE 16 PRINC'!K13,")") -> (0/0) | L21: : | N21: / | P21: ; | R21: / | T21: ; | V21: / | Z21: 1 | AA21: ='SCORE 16 PRINC'!AH13 ->  | AC21: (B2) | AD21: 2B | AG21: HEURE | AK21: TERR | AO21: ARB. | AW21: 9 - | AX21: ='SCORE 16 PRINC'!S32 -> 
A22: B | B22: T7 | C22: =CONCATENATE('EMARG M Tableau PRIN'!C15," / ",'EMARG M Tableau PRIN'!G15) -> T / 7 | D22: 2-4 | E22: =CONCATENATE(C22," - ",C24) -> T / 7 - T / 15 | F22: (11) | K22: =CONCATENATE("(",'SCORE 16 PRINC'!J17,"/",'SCORE 16 PRINC'!K17,")") -> (0/0) | L22: : | N22: / | P22: ; | R22: / | T22: ; | V22: / | Z22: 2 | AA22: ='SCORE 16 PRINC'!AH14 ->  | AD22: =AA22 ->  | AW22: 10 - | AX22: ='SCORE 16 PRINC'!S33 -> 
B23: T10 | C23: =CONCATENATE('EMARG M Tableau PRIN'!C18," / ",'EMARG M Tableau PRIN'!G18) -> T / 10 | D23: 1-3 | E23: =CONCATENATE(C21," - ",C23) -> T / 2 - T / 10 | F23: (15) | K23: =CONCATENATE("(",'SCORE 16 PRINC'!J21,"/",'SCORE 16 PRINC'!K21,")") -> (0/0) | L23: : | N23: / | P23: ; | R23: / | T23: ; | V23: / | Z23: 3 | AA23: ='SCORE 16 PRINC'!AH15 ->  | AW23: 11 - | AX23: ='SCORE 16 PRINC'!S34 -> 
B24: T15 | C24: =CONCATENATE('EMARG M Tableau PRIN'!C23," / ",'EMARG M Tableau PRIN'!G23) -> T / 15 | D24: 3-4 | E24: =CONCATENATE(C23," - ",C24) -> T / 10 - T / 15 | F24: (19) | K24: =CONCATENATE("(",'SCORE 16 PRINC'!J25,"/",'SCORE 16 PRINC'!K25,")") -> (0/0) | L24: : | N24: / | P24: ; | R24: / | T24: ; | V24: / | Z24: 4 | AA24: ='SCORE 16 PRINC'!AH16 ->  | AW24: 12 - | AX24: ='SCORE 16 PRINC'!S35 -> 
D25: 1-2 | E25: =CONCATENATE(C21," - ",C24) -> T / 2 - T / 15 | F25: (23) | K25: =CONCATENATE("(",'SCORE 16 PRINC'!J29,"/",'SCORE 16 PRINC'!K29,")") -> (0/0) | L25: : | N25: / | P25: ; | R25: / | T25: ; | V25: / | AD25: =AA37 ->  | AE25: SCORE | AG25: Set 1 | AK25: Set 2 | AO25: Set 3 | AW25: 13 - | AX25: =AA17 -> 
AD26: 3D | AE26: =CONCATENATE("(",'SCORE 16 PRINC'!J34,"/",'SCORE 16 PRINC'!K34,")") -> (0/0) | AH26: / | AL26: / | AP26: / | AW26: 14 - | AX26: =AA24 -> 
D27: 1-4 | E27: =CONCATENATE(C28," - ",C31) -> T / 3 - T / 14 | F27: (2) | G27: ='PLANNING PS 16'!D17 -> 09:00:00 | K27: =CONCATENATE("(",'SCORE 16 PRINC'!J10,"/",'SCORE 16 PRINC'!K10,")") -> (0/0) | L27: : | N27: / | P27: ; | R27: / | T27: ; | V27: / | AC27: (B3) | AD27: 2A | AG27: HEURE | AK27: TERR | AO27: ARB. | AW27: 15 - | AX27: =AA31 -> 
B28: T3 | C28: =CONCATENATE('EMARG M Tableau PRIN'!C11," / ",'EMARG M Tableau PRIN'!G11) -> T / 3 | D28: 2-3 | E28: =CONCATENATE(C29," - ",C30) -> T / 6 - T / 11 | F28: (6) | K28: =CONCATENATE("(",'SCORE 16 PRINC'!J14,"/",'SCORE 16 PRINC'!K14,")") -> (0/0) | L28: : | N28: / | P28: ; | R28: / | T28: ; | V28: / | Z28: 1 | AA28: ='SCORE 16 PRINC'!AH18 ->  | AD28: =AA15 ->  | AW28: 16 - | AX28: =AA38 -> 
A29: C | B29: T6 | C29: =CONCATENATE('EMARG M Tableau PRIN'!C14," / ",'EMARG M Tableau PRIN'!G14) -> T / 6 | D29: 2-4 | E29: =CONCATENATE(C29," - ",C31) -> T / 6 - T / 14 | F29: (10) | K29: =CONCATENATE("(",'SCORE 16 PRINC'!J18,"/",'SCORE 16 PRINC'!K18,")") -> (0/0) | L29: : | N29: / | P29: ; | R29: / | T29: ; | V29: / | Z29: 2 | AA29: ='SCORE 16 PRINC'!AH19 -> 
B30: T11 | C30: =CONCATENATE('EMARG M Tableau PRIN'!C19," / ",'EMARG M Tableau PRIN'!G19) -> T / 11 | D30: 1-3 | E30: =CONCATENATE(C28," - ",C30) -> T / 3 - T / 11 | F30: (14) | K30: =CONCATENATE("(",'SCORE 16 PRINC'!J22,"/",'SCORE 16 PRINC'!K22,")") -> (0/0) | L30: : | N30: / | P30: ; | R30: / | T30: ; | V30: / | Z30: 3 | AA30: ='SCORE 16 PRINC'!AH20 -> 
B31: T14 | C31: =CONCATENATE('EMARG M Tableau PRIN'!C22," / ",'EMARG M Tableau PRIN'!G22) -> T / 14 | D31: 3-4 | E31: =CONCATENATE(C30," - ",C31) -> T / 11 - T / 14 | F31: (18) | K31: =CONCATENATE("(",'SCORE 16 PRINC'!J26,"/",'SCORE 16 PRINC'!K26,")") -> (0/0) | L31: : | N31: / | P31: ; | R31: / | T31: ; | V31: / | Z31: 4 | AA31: ='SCORE 16 PRINC'!AH21 ->  | AD31: =AA36 ->  | AE31: SCORE | AG31: Set 1 | AK31: Set 2 | AO31: Set 3
D32: 1-2 | E32: =CONCATENATE(C28," - ",C29) -> T / 3 - T / 6 | F32: (22) | K32: =CONCATENATE("(",'SCORE 16 PRINC'!J30,"/",'SCORE 16 PRINC'!K30,")") -> (0/0) | L32: : | N32: / | P32: ; | R32: / | T32: ; | V32: / | AC32: (B4) | AD32: 2D | AE32: =CONCATENATE("(",'SCORE 16 PRINC'!J35,"/",'SCORE 16 PRINC'!K35,")") -> (0/0) | AH32: / | AL32: / | AP32: /
AD33: 3A | AG33: HEURE | AK33: TERR | AO33: ARB.
D34: 1-4 | E34: =CONCATENATE(C35," - ",C38) -> T / 4 - T / 13 | F34: (4) | K34: =CONCATENATE("(",'SCORE 16 PRINC'!J11,"/",'SCORE 16 PRINC'!K11,")") -> (0/0) | L34: : | N34: / | P34: ; | R34: / | T34: ; | V34: / | AD34: =AA16 -> 
B35: T4 | C35: =CONCATENATE('EMARG M Tableau PRIN'!C12," / ",'EMARG M Tableau PRIN'!G12) -> T / 4 | D35: 2-3 | E35: =CONCATENATE(C36," - ",C37) -> T / 5 - T /12 | F35: (8) | K35: =CONCATENATE("(",'SCORE 16 PRINC'!J15,"/",'SCORE 16 PRINC'!K15,")") -> (0/0) | L35: : | N35: / | P35: ; | R35: / | T35: ; | V35: / | Z35: 1 | AA35: ='SCORE 16 PRINC'!AH23 -> 
A36: D | B36: T5 | C36: =CONCATENATE('EMARG M Tableau PRIN'!C13," / ",'EMARG M Tableau PRIN'!G13) -> T / 5 | D36: 2-4 | E36: =CONCATENATE(C36," - ",C38) -> T / 5 - T / 13 | F36: (12) | K36: =CONCATENATE("(",'SCORE 16 PRINC'!J19,"/",'SCORE 16 PRINC'!K19,")") -> (0/0) | L36: : | N36: / | P36: ; | R36: / | T36: ; | V36: / | Z36: 2 | AA36: ='SCORE 16 PRINC'!AH24 -> 
B37: T12 | C37: =CONCATENATE('EMARG M Tableau PRIN'!C20," /",'EMARG M Tableau PRIN'!G20) -> T /12 | D37: 1-3 | E37: =CONCATENATE(C35," - ",C37) -> T / 4 - T /12 | F37: (16) | K37: =CONCATENATE("(",'SCORE 16 PRINC'!J23,"/",'SCORE 16 PRINC'!K23,")") -> (0/0) | L37: : | N37: / | P37: ; | R37: / | T37: ; | V37: / | Z37: 3 | AA37: ='SCORE 16 PRINC'!AH25 -> 
B38: T13 | C38: =CONCATENATE('EMARG M Tableau PRIN'!C21," / ",'EMARG M Tableau PRIN'!G21) -> T / 13 | D38: 3-4 | E38: =CONCATENATE(C37," - ",C38) -> T /12 - T / 13 | F38: (20) | K38: =CONCATENATE("(",'SCORE 16 PRINC'!J27,"/",'SCORE 16 PRINC'!K27,")") -> (0/0) | L38: : | N38: / | P38: ; | R38: / | T38: ; | V38: / | Z38: 4 | AA38: ='SCORE 16 PRINC'!AH26 -> 
D39: 1-2 | E39: =CONCATENATE(C35," - ",C36) -> T / 4 - T / 5 | F39: (24) | K39: =CONCATENATE("(",'SCORE 16 PRINC'!J31,"/",'SCORE 16 PRINC'!K31,")") -> (0/0) | L39: : | N39: / | P39: ; | R39: / | T39: ; | V39: /
H42: 1/4 FINALE | AD42: 1/2 FINALE | AU42: FINALE
H44: =AA14 ->  | K44: SCORE | M44: Set 1 | Q44: Set 2 | U44: Set 3 | AD44: ='SCORE 16 PRINC'!R36 ->  | AG44: SCORE | AI44: Set 1 | AM44: Set 2 | AQ44: Set 3
F45: 1/4 | H45: 1A | K45: =CONCATENATE("(",'SCORE 16 PRINC'!J36,"/",'SCORE 16 PRINC'!K36,")") -> (0/0) | N45: / | R45: / | V45: / | AG45: =CONCATENATE("(",'SCORE 16 PRINC'!J40,"/",'SCORE 16 PRINC'!K40,")") -> (0/0) | AJ45: / | AN45: / | AR45: /
F46: (25) | M46: HEURE | Q46: TERR | U46: ARB. | AI46: HEURE | AM46: TERR | AQ46: ARB.
H47: ='SCORE 16 PRINC'!R32 ->  | AD47: ='SCORE 16 PRINC'!R37 ->  | AU47: ='SCORE 16 PRINC'!R40 ->  | AY47: SCORE | BA47: Set 1 | BE47: Set 2 | BI47: Set 3
AY48: =CONCATENATE("(",'SCORE 16 PRINC'!J43,"/",'SCORE 16 PRINC'!K43,")") -> (0/0) | BB48: / | BF48: / | BJ48: /
BA49: HEURE | BE49: TERR | BI49: ARB.
H50: ='SCORE 16 PRINC'!R33 ->  | K50: SCORE | M50: Set 1 | Q50: Set 2 | U50: Set 3 | AD50: ='SCORE 16 PRINC'!R39 ->  | AG50: SCORE | AI50: Set 1 | AM50: Set 2 | AQ50: Set 3 | AU50: ='SCORE 16 PRINC'!R41 -> 
F51: 1/4 | K51: =CONCATENATE("(",'SCORE 16 PRINC'!J37,"/",'SCORE 16 PRINC'!K37,")") -> (0/0) | N51: / | R51: / | V51: / | AG51: =CONCATENATE("(",'SCORE 16 PRINC'!J41,"/",'SCORE 16 PRINC'!K41,")") -> (0/0) | AJ51: / | AN51: / | AR51: /
F52: (26) | H52: 1D | M52: HEURE | Q52: TERR | U52: ARB. | AI52: HEURE | AM52: TERR | AQ52: ARB.
H53: =AA35 ->  | AD53: ='SCORE 16 PRINC'!R38 -> 
H56: =AA28 ->  | K56: SCORE | M56: Set 1 | Q56: Set 2 | U56: Set 3 | AD56: PLACE 3/4
F57: 1/4 | H57: 1C | K57: =CONCATENATE("(",'SCORE 16 PRINC'!J38,"/",'SCORE 16 PRINC'!K38,")") -> (0/0) | N57: / | R57: / | V57: /
F58: (27) | M58: HEURE | Q58: TERR | U58: ARB. | AD58: ='SCORE 16 PRINC'!S40 ->  | AG58: SCORE | AI58: Set 1 | AM58: Set 2 | AQ58: Set 3
H59: ='SCORE 16 PRINC'!R34 ->  | AG59: =CONCATENATE("(",'SCORE 16 PRINC'!J42,"/",'SCORE 16 PRINC'!K42,")") -> (0/0) | AJ59: / | AN59: / | AR59: /
AI60: HEURE | AM60: TERR | AQ60: ARB.
AD61: ='SCORE 16 PRINC'!S41 -> 
F62: 1/4 | H62: ='SCORE 16 PRINC'!R35 ->  | K62: SCORE | M62: Set 1 | Q62: Set 2 | U62: Set 3
F63: (28) | K63: =CONCATENATE("(",'SCORE 16 PRINC'!J39,"/",'SCORE 16 PRINC'!K39,")") -> (0/0) | N63: / | R63: / | V63: /
H64: 1B | M64: HEURE | Q64: TERR | U64: ARB.
H65: =AA21 -> 

Sheet RELEVE
C1: RELEVE DES RESULTATS ET SANCTIONS - TOURNOI DE BEACH VOLLEY
C3: APPELATION DU TOURNOI | E3: =IF('LISTE ENGAGES'!Q3="","",'LISTE ENGAGES'!Q3) -> 
C4: TYPE | E4: =IF('LISTE ENGAGES'!Q5="","",'LISTE ENGAGES'!Q5) -> 
C5: GENRE | E5: =IF('LISTE ENGAGES'!Q9="","",'LISTE ENGAGES'!Q9) -> 
C6: DATE | E6: =IF('LISTE ENGAGES'!Q7="","",CONCATENATE('LISTE ENGAGES'!Q7,"-",'LISTE ENGAGES'!Q8,"/",'LISTE ENGAGES'!Q6)) -> 
C7: ORGANISATEUR | E7: =IF('LISTE ENGAGES'!Q12="","",'LISTE ENGAGES'!Q12) -> 
C9: NOMBRE EQUIPE TABLEAU : | F9: PRINCIPAL | I9: QUALIFICATION
C10: NOMBRE EQUIPE PRESENTES PAR TABLEAU | F10: PRINCIPAL | I10: QUALIFICATION
C13: COMPOSITION DE LA COMMISSION DE DIRECTION
C15: DELEGUE INSTANCE FEDERAL
C16: SUPERVISEUR
C17: JUGE ARBITRE
C18: ORGANISATEUR
C19: REPRESENTANT JOUEURS
C20: RAPPORTEUR*
C26: EQUIPES ABSENTES
C27: NOM | D27: PRENOM | E27: LIC J1 | F27: club J1 | G27: NOM2 | H27: PRENOM3 | I27: LIC J2 | J27: club J2
C34: RECLAMATIONS
C35: NOM | D35: PRENOM | E35: LIC J1 | F35: club J1 | G35: NOM2 | H35: PRENOM3 | I35: LIC J2 | J35: club J2 | K35: RANG | L35: NIVEAU | M35: MOTIF | N35: AVIS COMMISSION
B36: 1
B37: 2
B38: 3
B39: 4
B40: 5
B41: 6
C43: EQUIPES/JOUEURS SANCTIONNES
C44: NOM | D44: PRENOM | E44: LIC J1 | F44: club J1 | G44: NOM2 | H44: PRENOM3 | I44: LIC J2 | J44: club J2 | K44: RANG | L44: SANCTION | M44: MOTIF | N44: AVIS COMMISSION
B45: 1
B46: 2
B47: 3
B48: 4
B49: 5
B50: 6
C52: CLASSEMENT FINAL
C53: NOM | D53: PRENOM | E53: LIC J1 | F53: club J1 | G53: NOM2 | H53: PRENOM3 | I53: LIC J2 | J53: club J2 | K53: RANG
C54: ='LISTE ENGAGES'!C10 -> 0 | D54: ='LISTE ENGAGES'!D10 -> 0 | E54: ='LISTE ENGAGES'!E10 -> 0 | F54: ='LISTE ENGAGES'!F10 -> 0 | G54: ='LISTE ENGAGES'!G10 -> 0 | H54: ='LISTE ENGAGES'!H10 -> 0 | I54: ='LISTE ENGAGES'!I10 -> 0 | J54: ='LISTE ENGAGES'!J10 -> 0 | K54: 1
C55: ='LISTE ENGAGES'!C9 -> 0 | D55: ='LISTE ENGAGES'!D9 -> 0 | E55: ='LISTE ENGAGES'!E9 -> 0 | F55: ='LISTE ENGAGES'!F9 -> 0 | G55: ='LISTE ENGAGES'!G9 -> 0 | H55: ='LISTE ENGAGES'!H9 -> 0 | I55: ='LISTE ENGAGES'!I9 -> 0 | J55: ='LISTE ENGAGES'!J9 -> 0 | K55: 2
C56: ='LISTE ENGAGES'!C11 -> 0 | D56: ='LISTE ENGAGES'!D11 -> 0 | E56: ='LISTE ENGAGES'!E11 -> 0 | F56: ='LISTE ENGAGES'!F11 -> 0 | G56: ='LISTE ENGAGES'!G11 -> 0 | H56: ='LISTE ENGAGES'!H11 -> 0 | I56: ='LISTE ENGAGES'!I11 -> 0 | J56: ='LISTE ENGAGES'!J11 -> 0
C57: ='LISTE ENGAGES'!C12 -> 0 | D57: ='LISTE ENGAGES'!D12 -> 0 | E57: ='LISTE ENGAGES'!E12 -> 0 | F57: ='LISTE ENGAGES'!F12 -> 0 | G57: ='LISTE ENGAGES'!G12 -> 0 | H57: ='LISTE ENGAGES'!H12 -> 0 | I57: ='LISTE ENGAGES'!I12 -> 0 | J57: ='LISTE ENGAGES'!J12 -> 0
C58: ='LISTE ENGAGES'!C13 -> 0 | D58: ='LISTE ENGAGES'!D13 -> 0 | E58: ='LISTE ENGAGES'!E13 -> 0 | F58: ='LISTE ENGAGES'!F13 -> 0 | G58: ='LISTE ENGAGES'!G13 -> 0 | H58: ='LISTE ENGAGES'!H13 -> 0 | I58: ='LISTE ENGAGES'!I13 -> 0 | J58: ='LISTE ENGAGES'!J13 -> 0
C59: ='LISTE ENGAGES'!C14 -> 0 | D59: ='LISTE ENGAGES'!D14 -> 0 | E59: ='LISTE ENGAGES'!E14 -> 0 | F59: ='LISTE ENGAGES'!F14 -> 0 | G59: ='LISTE ENGAGES'!G14 -> 0 | H59: ='LISTE ENGAGES'!H14 -> 0 | I59: ='LISTE ENGAGES'!I14 -> 0 | J59: ='LISTE ENGAGES'!J14 -> 0
C60: ='LISTE ENGAGES'!C15 -> 0 | D60: ='LISTE ENGAGES'!D15 -> 0 | E60: ='LISTE ENGAGES'!E15 -> 0 | F60: ='LISTE ENGAGES'!F15 -> 0 | G60: ='LISTE ENGAGES'!G15 -> 0 | H60: ='LISTE ENGAGES'!H15 -> 0 | I60: ='LISTE ENGAGES'!I15 -> 0 | J60: ='LISTE ENGAGES'!J15 -> 0
C61: ='LISTE ENGAGES'!C16 -> 0 | D61: ='LISTE ENGAGES'!D16 -> 0 | E61: ='LISTE ENGAGES'!E16 -> 0 | F61: ='LISTE ENGAGES'!F16 -> 0 | G61: ='LISTE ENGAGES'!G16 -> 0 | H61: ='LISTE ENGAGES'!H16 -> 0 | I61: ='LISTE ENGAGES'!I16 -> 0 | J61: ='LISTE ENGAGES'!J16 -> 0
C62: ='LISTE ENGAGES'!C17 -> 0 | D62: ='LISTE ENGAGES'!D17 -> 0 | E62: ='LISTE ENGAGES'!E17 -> 0 | F62: ='LISTE ENGAGES'!F17 -> 0 | G62: ='LISTE ENGAGES'!G17 -> 0 | H62: ='LISTE ENGAGES'!H17 -> 0 | I62: ='LISTE ENGAGES'!I17 -> 0 | J62: ='LISTE ENGAGES'!J17 -> 0
C63: ='LISTE ENGAGES'!C18 -> 0 | D63: ='LISTE ENGAGES'!D18 -> 0 | E63: ='LISTE ENGAGES'!E18 -> 0 | F63: ='LISTE ENGAGES'!F18 -> 0 | G63: ='LISTE ENGAGES'!G18 -> 0 | H63: ='LISTE ENGAGES'!H18 -> 0 | I63: ='LISTE ENGAGES'!I18 -> 0 | J63: ='LISTE ENGAGES'!J18 -> 0
C64: ='LISTE ENGAGES'!C19 -> 0 | D64: ='LISTE ENGAGES'!D19 -> 0 | E64: ='LISTE ENGAGES'!E19 -> 0 | F64: ='LISTE ENGAGES'!F19 -> 0 | G64: ='LISTE ENGAGES'!G19 -> 0 | H64: ='LISTE ENGAGES'!H19 -> 0 | I64: ='LISTE ENGAGES'!I19 -> 0 | J64: ='LISTE ENGAGES'!J19 -> 0
C65: ='LISTE ENGAGES'!C20 -> 0 | D65: ='LISTE ENGAGES'!D20 -> 0 | E65: ='LISTE ENGAGES'!E20 -> 0 | F65: ='LISTE ENGAGES'!F20 -> 0 | G65: ='LISTE ENGAGES'!G20 -> 0 | H65: ='LISTE ENGAGES'!H20 -> 0 | I65: ='LISTE ENGAGES'!I20 -> 0 | J65: ='LISTE ENGAGES'!J20 -> 0
C66: ='LISTE ENGAGES'!C21 -> 0 | D66: ='LISTE ENGAGES'!D21 -> 0 | E66: ='LISTE ENGAGES'!E21 -> 0 | F66: ='LISTE ENGAGES'!F21 -> 0 | G66: ='LISTE ENGAGES'!G21 -> 0 | H66: ='LISTE ENGAGES'!H21 -> 0 | I66: ='LISTE ENGAGES'!I21 -> 0 | J66: ='LISTE ENGAGES'!J21 -> 0
C67: ='LISTE ENGAGES'!C22 -> 0 | D67: ='LISTE ENGAGES'!D22 -> 0 | E67: ='LISTE ENGAGES'!E22 -> 0 | F67: ='LISTE ENGAGES'!F22 -> 0 | G67: ='LISTE ENGAGES'!G22 -> 0 | H67: ='LISTE ENGAGES'!H22 -> 0 | I67: ='LISTE ENGAGES'!I22 -> 0 | J67: ='LISTE ENGAGES'!J22 -> 0
C68: ='LISTE ENGAGES'!C23 -> 0 | D68: ='LISTE ENGAGES'!D23 -> 0 | E68: ='LISTE ENGAGES'!E23 -> 0 | F68: ='LISTE ENGAGES'!F23 -> 0 | G68: ='LISTE ENGAGES'!G23 -> 0 | H68: ='LISTE ENGAGES'!H23 -> 0 | I68: ='LISTE ENGAGES'!I23 -> 0 | J68: ='LISTE ENGAGES'!J23 -> 0
C69: ='LISTE ENGAGES'!C24 -> 0 | D69: ='LISTE ENGAGES'!D24 -> 0 | E69: ='LISTE ENGAGES'!E24 -> 0 | F69: ='LISTE ENGAGES'!F24 -> 0 | G69: ='LISTE ENGAGES'!G24 -> 0 | H69: ='LISTE ENGAGES'!H24 -> 0 | I69: ='LISTE ENGAGES'!I24 -> 0 | J69: ='LISTE ENGAGES'!J24 -> 0
C70: ='LISTE ENGAGES'!C25 -> 0 | D70: ='LISTE ENGAGES'!D25 -> 0 | E70: ='LISTE ENGAGES'!E25 -> 0 | F70: ='LISTE ENGAGES'!F25 -> 0 | G70: ='LISTE ENGAGES'!G25 -> 0 | H70: ='LISTE ENGAGES'!H25 -> 0 | I70: ='LISTE ENGAGES'!I25 -> 0 | J70: ='LISTE ENGAGES'!J25 -> 0
C71: ='LISTE ENGAGES'!C26 -> 0 | D71: ='LISTE ENGAGES'!D26 -> 0 | E71: ='LISTE ENGAGES'!E26 -> 0 | F71: ='LISTE ENGAGES'!F26 -> 0 | G71: ='LISTE ENGAGES'!G26 -> 0 | H71: ='LISTE ENGAGES'!H26 -> 0 | I71: ='LISTE ENGAGES'!I26 -> 0 | J71: ='LISTE ENGAGES'!J26 -> 0
C72: ='LISTE ENGAGES'!C27 -> 0 | D72: ='LISTE ENGAGES'!D27 -> 0 | E72: ='LISTE ENGAGES'!E27 -> 0 | F72: ='LISTE ENGAGES'!F27 -> 0 | G72: ='LISTE ENGAGES'!G27 -> 0 | H72: ='LISTE ENGAGES'!H27 -> 0 | I72: ='LISTE ENGAGES'!I27 -> 0 | J72: ='LISTE ENGAGES'!J27 -> 0
C73: ='LISTE ENGAGES'!C28 -> 0 | D73: ='LISTE ENGAGES'!D28 -> 0 | E73: ='LISTE ENGAGES'!E28 -> 0 | F73: ='LISTE ENGAGES'!F28 -> 0 | G73: ='LISTE ENGAGES'!G28 -> 0 | H73: ='LISTE ENGAGES'!H28 -> 0 | I73: ='LISTE ENGAGES'!I28 -> 0 | J73: ='LISTE ENGAGES'!J28 -> 0
C74: ='LISTE ENGAGES'!C29 -> 0 | D74: ='LISTE ENGAGES'!D29 -> 0 | E74: ='LISTE ENGAGES'!E29 -> 0 | F74: ='LISTE ENGAGES'!F29 -> 0 | G74: ='LISTE ENGAGES'!G29 -> 0 | H74: ='LISTE ENGAGES'!H29 -> 0 | I74: ='LISTE ENGAGES'!I29 -> 0 | J74: ='LISTE ENGAGES'!J29 -> 0
C75: ='LISTE ENGAGES'!C30 -> 0 | D75: ='LISTE ENGAGES'!D30 -> 0 | E75: ='LISTE ENGAGES'!E30 -> 0 | F75: ='LISTE ENGAGES'!F30 -> 0 | G75: ='LISTE ENGAGES'!G30 -> 0 | H75: ='LISTE ENGAGES'!H30 -> 0 | I75: ='LISTE ENGAGES'!I30 -> 0 | J75: ='LISTE ENGAGES'!J30 -> 0
C76: ='LISTE ENGAGES'!C31 -> 0 | D76: ='LISTE ENGAGES'!D31 -> 0 | E76: ='LISTE ENGAGES'!E31 -> 0 | F76: ='LISTE ENGAGES'!F31 -> 0 | G76: ='LISTE ENGAGES'!G31 -> 0 | H76: ='LISTE ENGAGES'!H31 -> 0 | I76: ='LISTE ENGAGES'!I31 -> 0 | J76: ='LISTE ENGAGES'!J31 -> 0
C77: ='LISTE ENGAGES'!C32 -> 0 | D77: ='LISTE ENGAGES'!D32 -> 0 | E77: ='LISTE ENGAGES'!E32 -> 0 | F77: ='LISTE ENGAGES'!F32 -> 0 | G77: ='LISTE ENGAGES'!G32 -> 0 | H77: ='LISTE ENGAGES'!H32 -> 0 | I77: ='LISTE ENGAGES'!I32 -> 0 | J77: ='LISTE ENGAGES'!J32 -> 0
C78: ='LISTE ENGAGES'!C33 -> 0 | D78: ='LISTE ENGAGES'!D33 -> 0 | E78: ='LISTE ENGAGES'!E33 -> 0 | F78: ='LISTE ENGAGES'!F33 -> 0 | G78: ='LISTE ENGAGES'!G33 -> 0 | H78: ='LISTE ENGAGES'!H33 -> 0 | I78: ='LISTE ENGAGES'!I33 -> 0 | J78: ='LISTE ENGAGES'!J33 -> 0
C79: ='LISTE ENGAGES'!C34 -> 0 | D79: ='LISTE ENGAGES'!D34 -> 0 | E79: ='LISTE ENGAGES'!E34 -> 0 | F79: ='LISTE ENGAGES'!F34 -> 0 | G79: ='LISTE ENGAGES'!G34 -> 0 | H79: ='LISTE ENGAGES'!H34 -> 0 | I79: ='LISTE ENGAGES'!I34 -> 0 | J79: ='LISTE ENGAGES'!J34 -> 0
C80: ='LISTE ENGAGES'!C35 -> 0 | D80: ='LISTE ENGAGES'!D35 -> 0 | E80: ='LISTE ENGAGES'!E35 -> 0 | F80: ='LISTE ENGAGES'!F35 -> 0 | G80: ='LISTE ENGAGES'!G35 -> 0 | H80: ='LISTE ENGAGES'!H35 -> 0 | I80: ='LISTE ENGAGES'!I35 -> 0 | J80: ='LISTE ENGAGES'!J35 -> 0
C81: ='LISTE ENGAGES'!C36 -> 0 | D81: ='LISTE ENGAGES'!D36 -> 0 | E81: ='LISTE ENGAGES'!E36 -> 0 | F81: ='LISTE ENGAGES'!F36 -> 0 | G81: ='LISTE ENGAGES'!G36 -> 0 | H81: ='LISTE ENGAGES'!H36 -> 0 | I81: ='LISTE ENGAGES'!I36 -> 0 | J81: ='LISTE ENGAGES'!J36 -> 0
C84: REMARQUES :
C93: SIGNATURES :
